Workbook

Sheet Fig. 2d
B2: yield 1b (%) | G2: ee 1b (%)
A3: E. coli (HheC) | B3: Experiment1 | C3: Experiment2 | D3: Experiment3 | E3: Average (%) | F3: S.D. | G3: Experiment1 | H3: Experiment2 | I3: Experiment3 | J3: Average (%) | K3: S.D.
A4: SM9 | B4: 20.21 | C4: 21.76 | D4: 22.26 | E4: =AVERAGE(B4:D4) -> 21.4 | F4: =STDEV(B4:D4) -> 1.1 | G4: 60.5 | H4: 60.7 | I4: 60.1 | J4: =AVERAGE(G4:I4) -> 60 | K4: =STDEV(G4:I4) -> 0.3
A5: SM9+D80A | B5: no reaction | C5: no reaction | D5: no reaction | G5: no detected | H5: no detected | I5: no detected
A6: SM9+D80E | B6: no reaction | C6: no reaction | D6: no reaction | G6: no detected | H6: no detected | I6: no detected
A7: SM9+D182A | B7: 5.19 | C7: 4.82 | D7: 4.93 | E7: =AVERAGE(B7:D7) -> 5.0 | F7: =STDEV(B7:D7) -> 0.2 | G7: 60.4 | H7: 60.0 | I7: 59.8 | J7: =AVERAGE(G7:I7) -> 60 | K7: =STDEV(G7:I7) -> 0.3
A8: SM9+D182E | B8: 14.85 | C8: 14.76 | D8: 14.74 | E8: =AVERAGE(B8:D8) -> 14.8 | F8: =STDEV(B8:D8) -> 0.1 | G8: 62.7 | H8: 62.4 | I8: 61.1 | J8: =AVERAGE(G8:I8) -> 62 | K8: =STDEV(G8:I8) -> 0.9

Sheet Fig. 3d
C2: yield 1c(%)
A3: E. coli (HheC) | B3: Compound | C3: Experiment1 | D3: Experiment2 | E3: Experiment3 | F3: Average (%) | G3: S.D.
A4: HheC-WT | B4: 1c1 | C4: 58.89 | D4: 54.47 | E4: 59.33 | F4: =AVERAGE(C4:E4) -> 57.6 | G4: =STDEV(C4:E4) -> 2.7
B5: 1c2 | C5: 22.23 | D5: 22.20 | E5: 22.51 | F5: =AVERAGE(C5:E5) -> 22.3 | G5: =STDEV(C5:E5) -> 0.2
B6: 1c3 | C6: 44.96 | D6: 44.08 | E6: 39.93 | F6: 43.0 | G6: 2.7
A7: SM9 | B7: 1c1 | C7: 58.12 | D7: 58.76 | E7: 57.80 | F7: 58.2 | G7: 0.5
B8: 1c2 | C8: 3.42 | D8: 3.27 | E8: 3.32 | F8: 3.3 | G8: 0.1
B9: 1c3 | C9: 51.16 | D9: 48.32 | E9: 46.94 | F9: 48.8 | G9: 2.2
A10: SM9+D80A | B10: 1c1 | C10: 0.92 | D10: 0.94 | E10: 0.96 | F10: 0.9 | G10: 0.0
B11: 1c2 | C11: no reaction | D11: no reaction | E11: no reaction
B12: 1c3 | C12: 1.65 | D12: 1.58 | E12: 1.17 | F12: 1.5 | G12: 0.3

Sheet Fig. 3h
B2: conv. 1a (%)
A3: PB buffer,pH 8.5(mM) | B3: Experiment1 | C3: Experiment2 | D3: Experiment3 | E3: Average (%) | F3: S.D.
A4: 25 | B4: 5.82 | C4: 6.27 | D4: 7.69 | E4: =AVERAGE(B4:D4) -> 7 | F4: =STDEV(B4:D4) -> 1.0
A5: 50 | B5: 20.20 | C5: 21.41 | D5: 20.74 | E5: =AVERAGE(B5:D5) -> 21 | F5: =STDEV(B5:D5) -> 0.6
A6: 100 | B6: 41.55 | C6: 40.04 | D6: 40.45 | E6: 41 | F6: 0.8

Sheet Fig. 4c
B2: conv. 1a (%) | G2: ee (S）-1b (%)
A3: pH | B3: Experiment1 | C3: Experiment2 | D3: Experiment3 | E3: Average (%) | F3: S.D. | G3: Experiment1 | H3: Experiment2 | I3: Experiment3 | J3: Average (%) | K3: S.D.
A4: 6.5 | B4: 2.67 | C4: 2.68 | D4: 2.62 | E4: =AVERAGE(B4:D4) -> 3 | F4: =STDEV(B4:D4) -> 0.0 | G4: 100.0 | H4: 100.0 | I4: 100.0 | J4: ＞99 | K4: =STDEV(G4:I4) -> 0.0
A5: 7.5 | B5: 31.14 | C5: 30.58 | D5: 32.99 | E5: =AVERAGE(B5:D5) -> 32 | F5: =STDEV(B5:D5) -> 1.3 | G5: 98.1 | H5: 97.7 | I5: 97.4 | J5: =AVERAGE(G5:I5) -> 98 | K5: 0.3
A6: 8.5 | B6: 39.14 | C6: 39.33 | D6: 38.69 | E6: 39 | F6: 0.3 | G6: 96.6 | H6: 96.6 | I6: 96.4 | J6: 97 | K6: =STDEV(G6:I6) -> 0.1
A7: 9.5 | B7: 48.54 | C7: 48.21 | D7: 47.87 | E7: 48 | F7: 0.2 | G7: 95.7 | H7: 95.7 | I7: 95.3 | J7: 96 | K7: 0.1
A8: 10.5 | B8: 49.83 | C8: 48.91 | D8: 49.34 | E8: 49 | F8: 0.5 | G8: 93.9 | H8: 93.7 | I8: 93.9 | J8: 94 | K8: 0.1

Sheet Fig. 4d
B2: ee (S)-1b (%) | G2: ee (R)-1a (%)
A3: HheC-εM | B3: Experiment1 | C3: Experiment2 | D3: Experiment3 | E3: Average (%) | F3: S.D. | G3: Experiment1 | H3: Experiment2 | I3: Experiment3 | J3: Average (%) | K3: S.D.
A4: εM1 | B4: 54.2 | C4: 53.8 | D4: 53.6 | E4: =AVERAGE(B4:D4) -> 54 | F4: =STDEV(B4:D4) -> 0.3 | G4: 43.6 | H4: 41.9 | I4: 41.1 | J4: =AVERAGE(G4:I4) -> 42 | K4: =STDEV(G4:I4) -> 1.3
A5: εM2 | B5: 79.7 | C5: 79.4 | D5: 73.9 | E5: =AVERAGE(B5:D5) -> 78 | F5: =STDEV(B5:D5) -> 3.2 | G5: 98.4 | H5: 98.2 | I5: 98.4 | J5: =AVERAGE(G5:I5) -> 98 | K5: =STDEV(G5:I5) -> 0.1
A6: εM3 | B6: 93.7 | C6: 89.4 | D6: 93.6 | E6: 92 | F6: 2.5 | G6: 92.0 | H6: 96.3 | I6: 92.2 | J6: 94 | K6: 2.4
A7: εM4 | B7: 95.4 | C7: 95.4 | D7: 94.9 | E7: 95 | F7: 0.3 | G7: 74.2 | H7: 72.3 | I7: 74.7 | J7: 74 | K7: 1.3
A8: εM5 | B8: 96.2 | C8: 96.3 | D8: 96.4 | E8: 96 | F8: 0.1 | G8: 45.8 | H8: 46.4 | I8: 42.8 | J8: 45 | K8: 2.0
A9: εM6 | B9: 93.5 | C9: 93.9 | D9: 95.2 | E9: 94 | F9: 0.9 | G9: 96.7 | H9: 94.6 | I9: 90.2 | J9: 94 | K9: 3.3
A10: εM7 | B10: 95.5 | C10: 95.8 | D10: 95.2 | E10: 96 | F10: 0.4 | G10: 93.0 | H10: 91.7 | I10: 94.2 | J10: 93 | K10: 1.3
A11: εM8 | B11: 95.4 | C11: 95.3 | D11: 95.4 | E11: 95 | F11: =STDEV(B11:D11) -> 0.1 | G11: 91.5 | H11: 90.5 | I11: 90.0 | J11: 91 | K11: 0.8

Sheet Supplementary Table 1
A2: entry | B2: HHDHs | C2: Conversion 1a (%)b
A3: 1 | B3: - | C3: no reaction
A4: 2 | B4: HheA2 | C4: no reaction
A5: 3 | B5: HheA5 | C5: no reaction
A6: 4 | B6: HheA8 | C6: no reaction
A7: 5 | B7: HheA10 | C7: no reaction
A8: 6 | B8: HheA11 | C8: no reaction
A9: 7 | B9: HheA13 | C9: no reaction
A10: 8 | B10: HheB3 | C10: no reaction
A11: 9 | B11: HheB4 | C11: no reaction
A12: 10 | B12: HheB6 | C12: no reaction
A13: 11 | B13: HheC | C13: no reaction
A14: 12 | B14: HheD | C14: no reaction
A15: 13 | B15: HheD2 | C15: no reaction
A16: 14 | B16: HheD6 | C16: no reaction
A17: 15 | B17: HheD7 | C17: no reaction
A18: 16 | B18: HheD8 | C18: no reaction
A19: 17 | B19: HheD9 | C19: no reaction
A20: 18 | B20: HheD14 | C20: no reaction
A21: 19 | B21: HheD15 | C21: no reaction
A22: 20 | B22: HheD16 | C22: no reaction
A23: 21 | B23: HheD17 | C23: no reaction
A24: 22 | B24: HheD20 | C24: no reaction
A25: 23 | B25: HheE | C25: no reaction
A26: 24 | B26: HheE5 | C26: no reaction
A27: 25 | B27: HheF | C27: no reaction
A28: 26 | B28: HheG | C28: no reaction
A29: 27 | B29: HheG2 | C29: no reaction
A30: 28 | B30: HHDHn1 | C30: no reaction
A31: 29 | B31: HHDHn2 | C31: no reaction
A32: 30 | B32: HHDHn3 | C32: no reaction
A33: 31 | B33: HHDHn4 | C33: no reaction
A34: 32 | B34: HHDHn5 | C34: no reaction
A35: 33 | B35: HHDHn6 | C35: no reaction
A36: 34 | B36: HHDHn7 | C36: no reaction
A37: 35 | B37: HHDHn8 | C37: no reaction
A38: 36 | B38: HHDHn9 | C38: no reaction
A39: 37 | B39: HHDHn10 | C39: no reaction
A40: 38 | B40: HHDHn11 | C40: no reaction
A41: 39 | B41: HHDHamb | C41: no reaction
A42: 40 | B42: HHDHapb | C42: no reaction
A43: 41 | B43: HHDHabb | C43: no reaction
A44: 42 | B44: HHDHnsr | C44: no reaction

Sheet Supplementary Table 2
A2: entry | B2: E. coli (HheG) | C2: Conversion 1a (%)b
A3: 1 | B3: RM1 | C3: no reaction
A4: 2 | B4: RM2 | C4: no reaction
A5: 3 | B5: RM3 | C5: no reaction
A6: 4 | B6: RM4 | C6: no reaction
A7: 5 | B7: RM5 | C7: no reaction
A8: 6 | B8: RM6 | C8: no reaction
A9: 7 | B9: rac-M4 | C9: no reaction
A10: 8 | B10: M3 | C10: no reaction
A11: 9 | B11: M4 | C11: no reaction
A12: 10 | B12: M5 | C12: no reaction
A13: 11 | B13: M6 | C13: no reaction
A14: 12 | B14: M7 | C14: no reaction
A15: 13 | B15: M8 | C15: no reaction

Sheet Supplementary Table 3
C2: yield 1c(%) | H2: yield 1b(%) | M2: ee 1b(%) | R2: ee 1a (%)
A3: entry | B3: E. coli (HheC) | C3: Experiment1 | D3: Experiment2 | E3: Experiment3 | F3: Average (%) | G3: S.D. | H3: Experiment1 | I3: Experiment2 | J3: Experiment3 | K3: Average (%) | L3: S.D. | M3: Experiment1 | N3: Experiment2 | O3: Experiment3 | P3: Average (%) | Q3: S.D. | R3: Experiment1 | S3: Experiment2 | T3: Experiment3 | U3: Average (%) | V3: S.D.
A4: 1 | B4: SM1 | C4: 0 | D4: 0 | E4: 0 | H4: no reaction | I4: no reaction | J4: no reaction | M4: not detected | N4: not detected | O4: not detected | R4: 0 | S4: 0 | T4: 0
A5: 2 | B5: SM2 | C5: 0 | D5: 0 | E5: 0 | H5: no reaction | I5: no reaction | J5: no reaction | M5: not detected | N5: not detected | O5: not detected | R5: 0 | S5: 0 | T5: 0
A6: 3 | B6: SM3 | C6: 0 | D6: 0 | E6: 0 | H6: no reaction | I6: no reaction | J6: no reaction | M6: not detected | N6: not detected | O6: not detected | R6: 0 | S6: 0 | T6: 0
A7: 4 | B7: SM4 | C7: 0 | D7: 0 | E7: 0 | H7: no reaction | I7: no reaction | J7: no reaction | M7: not detected | N7: not detected | O7: not detected | R7: 0 | S7: 0 | T7: 0
A8: 5 | B8: SM5 | C8: 0 | D8: 0 | E8: 0 | H8: 2.74 | I8: 2.45 | J8: 2.96 | K8: =AVERAGE(H8:J8) -> 2.7 | L8: =STDEV(H8:J8) -> 0.3 | M8: 33.80 | N8: 32.21 | O8: 33.41 | P8: =AVERAGE(M8:O8) -> 33 | Q8: =STDEV(M8:O8) -> 0.8 | R8: 0.4 | S8: 0.3 | T8: 0.2 | U8: =AVERAGE(R8:T8) -> 0 | V8: =STDEV(R8:T8) -> 0.1
A9: 6 | B9: SM6 | C9: 0 | D9: 0 | E9: 0 | H9: no reaction | I9: no reaction | J9: no reaction | M9: not detected | N9: not detected | O9: not detected | R9: 0 | S9: 0 | T9: 0
A10: 7 | B10: SM7 | C10: 0 | D10: 0 | E10: 0 | H10: 3.25 | I10: 3.69 | J10: 3.53 | K10: =AVERAGE(H10:J10) -> 3.5 | L10: =STDEV(H10:J10) -> 0.2 | M10: 7.37 | N10: 7.77 | O10: 7.75 | P10: =AVERAGE(M10:O10) -> 8 | Q10: =STDEV(M10:O10) -> 0.2 | R10: 0.7 | S10: 0.6 | T10: 0.8 | U10: =AVERAGE(R10:T10) -> 1 | V10: =STDEV(R10:T10) -> 0.1
A11: 8 | B11: SM8 | C11: 0 | D11: 0 | E11: 0 | H11: no reaction | I11: no reaction | J11: no reaction | M11: not detected | N11: not detected | O11: not detected | R11: 0 | S11: 0 | T11: 0
A12: 9 | B12: SM9 | C12: 0 | D12: 0 | E12: 0 | H12: 18.59 | I12: 18.97 | J12: 18.55 | K12: =AVERAGE(H12:J12) -> 18.7 | L12: =STDEV(H12:J12) -> 0.2 | M12: 58.90 | N12: 58.23 | O12: 58.42 | P12: =AVERAGE(M12:O12) -> 59 | Q12: =STDEV(M12:O12) -> 0.3 | R12: 14.9 | S12: 15.9 | T12: 15.3 | U12: =AVERAGE(R12:T12) -> 15 | V12: =STDEV(R12:T12) -> 0.5
A13: 10 | B13: DM1 | C13: 0 | D13: 0 | E13: 0 | H13: no reaction | I13: no reaction | J13: no reaction | M13: not detected | N13: not detected | O13: not detected | R13: 0 | S13: 0 | T13: 0
A14: 11 | B14: DM2 | C14: 0 | D14: 0 | E14: 0 | H14: no reaction | I14: no reaction | J14: no reaction | M14: not detected | N14: not detected | O14: not detected | R14: 0 | S14: 0 | T14: 0
A15: 12 | B15: DM3 | C15: 0 | D15: 0 | E15: 0 | H15: no reaction | I15: no reaction | J15: no reaction | M15: not detected | N15: not detected | O15: not detected | R15: 0 | S15: 0 | T15: 0
A16: 13 | B16: DM4 | C16: 0 | D16: 0 | E16: 0 | H16: no reaction | I16: no reaction | J16: no reaction | M16: not detected | N16: not detected | O16: not detected | R16: 0 | S16: 0 | T16: 0
A17: 14 | B17: DM5 | C17: 0 | D17: 0 | E17: 0 | H17: no reaction | I17: no reaction | J17: no reaction | M17: not detected | N17: not detected | O17: not detected | R17: 0 | S17: 0 | T17: 0
A18: 15 | B18: DM6 | C18: 0 | D18: 0 | E18: 0 | H18: no reaction | I18: no reaction | J18: no reaction | M18: not detected | N18: not detected | O18: not detected | R18: 0 | S18: 0 | T18: 0
A19: 16 | B19: DM7 | C19: 0 | D19: 0 | E19: 0 | H19: no reaction | I19: no reaction | J19: no reaction | M19: not detected | N19: not detected | O19: not detected | R19: 0 | S19: 0 | T19: 0
A20: 17 | B20: TM1 | C20: 0 | D20: 0 | E20: 0 | H20: no reaction | I20: no reaction | J20: no reaction | M20: not detected | N20: not detected | O20: not detected | R20: 0 | S20: 0 | T20: 0
A21: 18 | B21: TM2 | C21: 0 | D21: 0 | E21: 0 | H21: no reaction | I21: no reaction | J21: no reaction | M21: not detected | N21: not detected | O21: not detected | R21: 0 | S21: 0 | T21: 0
A22: 19 | B22: QM1 | C22: 0 | D22: 0 | E22: 0 | H22: no reaction | I22: no reaction | J22: no reaction | M22: not detected | N22: not detected | O22: not detected | R22: 0 | S22: 0 | T22: 0

Sheet Supplementary Table 4
C2: yield 1b (%) | H2: ee 1b (%) | M2: ee 1a (%)
A3: entry | B3: E. coli (HheC) | C3: Experiment1 | D3: Experiment2 | E3: Experiment3 | F3: Average (%) | G3: S.D. | H3: Experiment1 | I3: Experiment2 | J3: Experiment3 | K3: Average (%) | L3: S.D. | M3: Experiment1 | N3: Experiment2 | O3: Experiment3 | P3: Average (%) | Q3: S.D.
A4: 1 | B4: SM9 | C4: 20.21 | D4: 21.76 | E4: 22.26 | F4: =AVERAGE(C4:E4) -> 21.4 | G4: =STDEV(C4:E4) -> 1.1 | H4: 60.5 | I4: 60.7 | J4: 60.1 | K4: =AVERAGE(H4:J4) -> 60 | L4: =STDEV(H4:J4) -> 0.3 | M4: 18.1 | N4: 18.5 | O4: 18.4 | P4: =AVERAGE(M4:O4) -> 18 | Q4: =STDEV(M4:O4) -> 0.2
A5: 2 | B5: SM9+D80A | C5: no reaction | D5: no reaction | E5: no reaction | H5: not detected | I5: not detected | J5: not detected | M5: 1.1 | N5: 1.2 | O5: 1.2 | P5: =AVERAGE(M5:O5) -> 1 | Q5: =STDEV(M5:O5) -> 0.1
A6: 3 | B6: SM9+D80E | C6: no reaction | D6: no reaction | E6: no reaction | H6: not detected | I6: not detected | J6: not detected | M6: 0.1 | N6: -0.0 | O6: 0.1 | P6: 0 | Q6: 0.1
A7: 4 | B7: SM9+D182A | C7: 5.19 | D7: 4.82 | E7: 4.93 | F7: =AVERAGE(C7:E7) -> 5.0 | G7: =STDEV(C7:E7) -> 0.2 | H7: 60.4 | I7: 60.0 | J7: 59.8 | K7: =AVERAGE(H7:J7) -> 60 | L7: =STDEV(H7:J7) -> 0.3 | M7: 3.2 | N7: 3.2 | O7: 3.1 | P7: =AVERAGE(M7:O7) -> 3 | Q7: =STDEV(M7:O7) -> 0.0
A8: 5 | B8: SM9+D182E | C8: 14.85 | D8: 14.76 | E8: 14.74 | F8: =AVERAGE(C8:E8) -> 14.8 | G8: =STDEV(C8:E8) -> 0.1 | H8: 62.7 | I8: 62.4 | J8: 61.1 | K8: =AVERAGE(H8:J8) -> 62 | L8: =STDEV(H8:J8) -> 0.9 | M8: 11.7 | N8: 11.9 | O8: 11.9 | P8: =AVERAGE(M8:O8) -> 12 | Q8: =STDEV(M8:O8) -> 0.1

Sheet Supplementary Table 5
C2: yield 1c1 (%) | H2: ee 1c1 (%) | M2: ee 1a1 (%)
A3: entry | B3: E. coli (HheC) | C3: Experiment1 | D3: Experiment2 | E3: Experiment3 | F3: Average (%) | G3: S.D. | H3: Experiment1 | I3: Experiment2 | J3: Experiment3 | K3: Average (%) | L3: S.D. | M3: Experiment1 | N3: Experiment2 | O3: Experiment3 | P3: Average (%) | Q3: S.D.
A4: 1 | B4: - | C4: 0.89 | D4: 0.90 | E4: 0.88 | F4: =AVERAGE(C4:E4) -> 0.9 | G4: =STDEV(C4:E4) -> 0.0 | H4: not detected | I4: not detected | J4: not detected | M4: 4.02 | N4: 4.71 | O4: 4.38 | P4: =AVERAGE(M4:O4) -> 4 | Q4: =STDEV(M4:O4) -> 0.3
A5: 2 | B5: HheC-WT | C5: 58.89 | D5: 54.47 | E5: 59.33 | F5: =AVERAGE(C5:E5) -> 57.6 | G5: =STDEV(C5:E5) -> 2.7 | H5: 1.23 | I5: 1.67 | J5: 1.72 | K5: =AVERAGE(H5:J5) -> 2 | L5: =STDEV(H5:J5) -> 0.3 | M5: 7.61 | N5: 6.32 | O5: 7.59 | P5: =AVERAGE(M5:O5) -> 7 | Q5: =STDEV(M5:O5) -> 0.7
A6: 3 | B6: SM9 | C6: 58.12 | D6: 58.76 | E6: 57.80 | F6: =AVERAGE(C6:E6) -> 58.2 | G6: =STDEV(C6:E6) -> 0.5 | H6: 1.41 | I6: 1.45 | J6: 1.65 | K6: =AVERAGE(H6:J6) -> 2 | L6: =STDEV(H6:J6) -> 0.1 | M6: 2.21 | N6: 3.79 | O6: 2.14 | P6: =AVERAGE(M6:O6) -> 3 | Q6: =STDEV(M6:O6) -> 0.9
A7: 4 | B7: SM9+D80A | C7: 0.92 | D7: 0.94 | E7: 0.96 | F7: 0.9 | G7: 0.0 | H7: not detected | I7: not detected | J7: not detected | M7: 5.54 | N7: 4.82 | O7: 6.70 | P7: 6 | Q7: 1.0
A8: 5 | B8: SM9+D182A | C8: 61.13 | D8: 60.59 | E8: 59.60 | F8: 60.4 | G8: 0.8 | H8: 2.21 | I8: 1.98 | J8: 1.83 | K8: =AVERAGE(H8:J8) -> 2 | L8: =STDEV(H8:J8) -> 0.2 | M8: 3.28 | N8: 3.81 | O8: 1.51 | P8: 3 | Q8: 1.2

Sheet Supplementary Table 6
C2: yield 1c2 (%) | H2: ee 1c2 (%) | M2: ee 1a2 (%)
A3: entry | B3: E. coli (HheC) | C3: Experiment1 | D3: Experiment2 | E3: Experiment3 | F3: Average (%) | G3: S.D. | H3: Experiment1 | I3: Experiment2 | J3: Experiment3 | K3: Average (%) | L3: S.D. | M3: Experiment1 | N3: Experiment2 | O3: Experiment3 | P3: Average (%) | Q3: S.D.
A4: 1 | B4: - | C4: no reaction | D4: no reaction | E4: no reaction | H4: not detected | I4: not detected | J4: not detected | M4: 2.06 | N4: 2.29 | O4: 2.76 | P4: =AVERAGE(M4:O4) -> 2 | Q4: =STDEV(M4:O4) -> 0.4
A5: 2 | B5: HheC-WT | C5: 22.23 | D5: 22.20 | E5: 22.51 | F5: =AVERAGE(C5:E5) -> 22.3 | G5: =STDEV(C5:E5) -> 0.2 | H5: 85.53 | I5: 84.71 | J5: 85.01 | K5: =AVERAGE(H5:J5) -> 85 | L5: =STDEV(H5:J5) -> 0.4 | M5: 28.34 | N5: 27.78 | O5: 28.32 | P5: 28 | Q5: 0.3
A6: 3 | B6: SM9 | C6: 3.42 | D6: 3.27 | E6: 3.32 | F6: =AVERAGE(C6:E6) -> 3.3 | G6: =STDEV(C6:E6) -> 0.1 | H6: 9.12 | I6: 9.91 | J6: 9.41 | K6: =AVERAGE(H6:J6) -> 9 | L6: =STDEV(H6:J6) -> 0.4 | M6: 2.59 | N6: 2.63 | O6: 2.29 | P6: =AVERAGE(M6:O6) -> 3 | Q6: =STDEV(M6:O6) -> 0.2
A7: 4 | B7: SM9+D80A | C7: no reaction | D7: no reaction | E7: no reaction | H7: not detected | I7: not detected | J7: not detected | M7: 1.93 | N7: 2.19 | O7: 1.88 | P7: =AVERAGE(M7:O7) -> 2 | Q7: =STDEV(M7:O7) -> 0.2
A8: 5 | B8: SM9+D182A | C8: 0.46 | D8: 0.32 | E8: 0.56 | F8: =AVERAGE(C8:E8) -> 0.4 | G8: =STDEV(C8:E8) -> 0.1 | H8: not detected | I8: not detected | J8: not detected | M8: 1.73 | N8: 2.06 | O8: 1.87 | P8: =AVERAGE(M8:O8) -> 2 | Q8: =STDEV(M8:O8) -> 0.2

Sheet Supplementary Table 7
C2: yield 1c3 (%) | H2: ee 1c3 (%) | M2: ee 1a3 (%)
A3: entry | B3: E. coli (HheC) | C3: Experiment1 | D3: Experiment2 | E3: Experiment3 | F3: Average (%) | G3: S.D. | H3: Experiment1 | I3: Experiment2 | J3: Experiment3 | K3: Average (%) | L3: S.D. | M3: Experiment1 | N3: Experiment2 | O3: Experiment3 | P3: Average (%) | Q3: S.D.
A4: 1 | B4: - | C4: 1.53 | D4: 1.58 | E4: 1.50 | F4: =AVERAGE(C4:E4) -> 1.5 | G4: =STDEV(C4:E4) -> 0.0 | H4: 1.65 | I4: 0.52 | J4: 2.60 | K4: =AVERAGE(H4:J4) -> 2 | L4: =STDEV(H4:J4) -> 1.0 | M4: 0.31 | N4: 0.24 | O4: 0.04 | P4: =AVERAGE(M4:O4) -> 0 | Q4: =STDEV(M4:O4) -> 0.1
A5: 2 | B5: HheC-WT | C5: 44.96 | D5: 44.08 | E5: 39.93 | F5: 43.0 | G5: 2.7 | H5: 69.29 | I5: 68.21 | J5: 65.93 | K5: =AVERAGE(H5:J5) -> 68 | L5: =STDEV(H5:J5) -> 1.7 | M5: 99.15 | N5: 99.40 | O5: 99.19 | P5: 99 | Q5: 0.1
A6: 3 | B6: SM9 | C6: 51.16 | D6: 48.32 | E6: 46.94 | F6: =AVERAGE(C6:E6) -> 48.8 | G6: =STDEV(C6:E6) -> 2.2 | H6: 38.01 | I6: 37.68 | J6: 38.01 | K6: =AVERAGE(H6:J6) -> 38 | L6: =STDEV(H6:J6) -> 0.2 | M6: 55.75 | N6: 55.99 | O6: 55.16 | P6: =AVERAGE(M6:O6) -> 56 | Q6: =STDEV(M6:O6) -> 0.4
A7: 4 | B7: SM9+D80A | C7: 1.65 | D7: 1.58 | E7: 1.17 | F7: =AVERAGE(C7:E7) -> 1.5 | G7: =STDEV(C7:E7) -> 0.3 | H7: 4.72 | I7: 3.88 | J7: 3.70 | K7: =AVERAGE(H7:J7) -> 4 | L7: =STDEV(H7:J7) -> 0.5 | M7: 0.45 | N7: 0.06 | O7: -0.16 | P7: =AVERAGE(M7:O7) -> 0 | Q7: =STDEV(M7:O7) -> 0.3
A8: 5 | B8: SM9+D182A | C8: 24.18 | D8: 24.21 | E8: 23.20 | F8: =AVERAGE(C8:E8) -> 23.9 | G8: =STDEV(C8:E8) -> 0.6 | H8: 32.69 | I8: 32.67 | J8: 32.74 | K8: =AVERAGE(H8:J8) -> 33 | L8: =STDEV(H8:J8) -> 0.0 | M8: 13.38 | N8: 13.51 | O8: 12.84 | P8: =AVERAGE(M8:O8) -> 13 | Q8: =STDEV(M8:O8) -> 0.4

Sheet Supplementary Table 8
A2: entry | B2: E. coli (HheC) | C2: Yield 1b (%)b | D2: ee 1b (%)b | E2: ee 1a (%)b
A3: 1 | B3: SM9+S132A | C3: no reaction | D3: not detected | E3: 0.2
A4: 2 | B4: SM9+S132T | C4: no reaction | D4: not detected | E4: 0.7
A5: 3 | B5: SM9+S132C | C5: no reaction | D5: not detected | E5: 1.4
A6: 4 | B6: SM9+Y145A | C6: no reaction | D6: not detected | E6: 0.1
A7: 5 | B7: SM9+Y145F | C7: no reaction | D7: not detected | E7: 0.6
A8: 6 | B8: SM9+Y145W | C8: no reaction | D8: not detected | E8: 1.1
A9: 7 | B9: SM9+R149A | C9: no reaction | D9: not detected | E9: 0.2
A10: 8 | B10: SM9+R149K | C10: no reaction | D10: not detected | E10: 0.1
A11: 9 | B11: SM9+R149D | C11: no reaction | D11: not detected | E11: 0.4
A12: 10 | B12: SM9+R149E | C12: no reaction | D12: not detected | E12: 0.0

Sheet Supplementary Table 9
C2: yield 1b (%) | H2: ee 1b (%) | M2: ee 1a (%)
A3: entry | B3: E. coli (HheC) | C3: Experiment1 | D3: Experiment2 | E3: Experiment3 | F3: Average (%) | G3: S.D. | H3: Experiment1 | I3: Experiment2 | J3: Experiment3 | K3: Average (%) | L3: S.D. | M3: Experiment1 | N3: Experiment2 | O3: Experiment3 | P3: Average (%) | Q3: S.D.
A4: 1 | B4: SM9+ N176A | C4: no reaction | D4: no reaction | E4: no reaction | H4: not detected | I4: not detected | J4: not detected | M4: 0.6 | N4: not detected | O4: not detected
A5: 2 | B5: SM9+Y177A | C5: no reaction | D5: no reaction | E5: no reaction | H5: not detected | I5: not detected | J5: not detected | M5: 0.0 | N5: not detected | O5: not detected
A6: 3 | B6: SM9+ L178A | C6: no reaction | D6: no reaction | E6: no reaction | H6: not detected | I6: not detected | J6: not detected | M6: 0.6 | N6: not detected | O6: not detected
A7: 4 | B7: SM9+H179A | C7: no reaction | D7: no reaction | E7: no reaction | H7: not detected | I7: not detected | J7: not detected | M7: 0.3 | N7: not detected | O7: not detected
A8: 5 | B8: SM9+S180A | C8: no reaction | D8: no reaction | E8: no reaction | H8: not detected | I8: not detected | J8: not detected | M8: 0.3 | N8: no detected | O8: not detected
A9: 6 | B9: SM9+E181A | C9: 2.1 | D9: 2.1 | E9: 2.0 | F9: =AVERAGE(C9:E9) -> 2.1 | G9: =STDEV(C9:E9) -> 0.0 | H9: 59.8 | I9: 58.5 | J9: 58.8 | K9: =AVERAGE(H9:J9) -> 59 | L9: =STDEV(H9:J9) -> 0.7 | M9: 1.6 | N9: 0.5 | O9: 0.5 | P9: =AVERAGE(M9:O9) -> 1 | Q9: =STDEV(M9:O9) -> 0.7
A10: 7 | B10: SM9+D182A | C10: 5.2 | D10: 4.8 | E10: 4.9 | F10: 5.0 | G10: 0.2 | H10: 60.4 | I10: 60.0 | J10: 59.8 | K10: =AVERAGE(H10:J10) -> 60 | L10: =STDEV(H10:J10) -> 0.3 | M10: 3.2 | N10: 3.2 | O10: 3.1 | P10: =AVERAGE(M10:O10) -> 3 | Q10: =STDEV(M10:O10) -> 0.0
A11: 8 | B11: SM9+S183A | C11: no reaction | D11: no reaction | E11: no reaction | H11: not detected | I11: not detected | J11: not detected | M11: 0.2 | N11: not detected | O11: not detected
A12: 9 | B12: SM9+P184A | C12: no reaction | D12: no reaction | E12: no reaction | H12: not detected | I12: not detected | J12: not detected | M12: 0.1 | N12: not detected | O12: not detected
A13: 10 | B13: SM9+Y185A | C13: no reaction | D13: no reaction | E13: no reaction | H13: not detected | I13: not detected | J13: not detected | M13: 0.2 | N13: not detected | O13: not detected
A14: 11 | B14: SM9+F186A | C14: no reaction | D14: no reaction | E14: no reaction | H14: not detected | I14: not detected | J14: not detected | M14: 0.2 | N14: not detected | O14: not detected
A15: 12 | B15: SM9+Y187A | C15: no reaction | D15: no reaction | E15: no reaction | H15: not detected | I15: not detected | J15: not detected | M15: 1.3 | N15: not detected | O15: not detected

Sheet Supplementary Table 10
C2: ee (R）-1b (%) | H2: ee (S）-1a (%) | M2: conv. 1a (%)
A3: entry | B3: PB buffer,pH 8.5(mM) | C3: Experiment1 | D3: Experiment2 | E3: Experiment3 | F3: Average (%) | G3: S.D. | H3: Experiment1 | I3: Experiment2 | J3: Experiment3 | K3: Average (%) | L3: S.D. | M3: Experiment1 | N3: Experiment2 | O3: Experiment3 | P3: Average (%) | Q3: S.D.
A4: 1 | B4: 25 | C4: 65.7 | D4: 62.1 | E4: 62.0 | F4: =AVERAGE(C4:E4) -> 63 | G4: =STDEV(C4:E4) -> 2.1 | H4: 4.1 | I4: 4.2 | J4: 5.2 | K4: 5 | L4: =STDEV(H4:J4) -> 0.6 | M4: 5.82 | N4: 6.27 | O4: 7.69 | P4: =AVERAGE(M4:O4) -> 7 | Q4: =STDEV(M4:O4) -> 1.0
A5: 2 | B5: 50 | C5: 58.9 | D5: 58.2 | E5: 58.4 | F5: =AVERAGE(C5:E5) -> 59 | G5: =STDEV(C5:E5) -> 0.3 | H5: 14.9 | I5: 15.9 | J5: 15.3 | K5: =AVERAGE(H5:J5) -> 15 | L5: =STDEV(H5:J5) -> 0.5 | M5: 20.20 | N5: 21.41 | O5: 20.74 | P5: =AVERAGE(M5:O5) -> 21 | Q5: =STDEV(M5:O5) -> 0.6
A6: 3 | B6: 100 | C6: 54.5 | D6: 55.2 | E6: 55.0 | F6: 55 | G6: 0.4 | H6: 38.8 | I6: 36.9 | J6: 37.4 | K6: 38 | L6: 1.0 | M6: 41.55 | N6: 40.04 | O6: 40.45 | P6: 41 | Q6: 0.8

Sheet Supplementary Table 11
C2: ee (S）-1b (%) | H2: ee (S）-1a (%) | M2: conv. 1a (%)
A3: entry | B3: pH | C3: Experiment1 | D3: Experiment2 | E3: Experiment3 | F3: Average (%) | G3: S.D. | H3: Experiment1 | I3: Experiment2 | J3: Experiment3 | K3: Average (%) | L3: S.D. | M3: Experiment1 | N3: Experiment2 | O3: Experiment3 | P3: Average (%) | Q3: S.D.
A4: 1 | B4: 6.5 | C4: 100.0 | D4: 100.0 | E4: 100.0 | F4: ＞99 | G4: =STDEV(C4:E4) -> 0.0 | H4: 2.7 | I4: 2.8 | J4: 2.7 | K4: =AVERAGE(H4:J4) -> 3 | L4: =STDEV(H4:J4) -> 0.0 | M4: 2.67 | N4: 2.68 | O4: 2.62 | P4: =AVERAGE(M4:O4) -> 3 | Q4: =STDEV(M4:O4) -> 0.0
A5: 2 | B5: 7.5 | C5: 98.1 | D5: 97.7 | E5: 97.4 | F5: =AVERAGE(C5:E5) -> 98 | G5: 0.3 | H5: 45.9 | I5: 44.7 | J5: 46.5 | K5: =AVERAGE(H5:J5) -> 46 | L5: =STDEV(H5:J5) -> 0.9 | M5: 31.14 | N5: 30.58 | O5: 32.99 | P5: =AVERAGE(M5:O5) -> 32 | Q5: =STDEV(M5:O5) -> 1.3
A6: 3 | B6: 8.5 | C6: 96.6 | D6: 96.6 | E6: 96.4 | F6: 97 | G6: =STDEV(C6:E6) -> 0.1 | H6: 62.1 | I6: 62.6 | J6: 60.8 | K6: 62 | L6: 0.9 | M6: 39.14 | N6: 39.33 | O6: 38.69 | P6: 39 | Q6: 0.3
A7: 4 | B7: 9.5 | C7: 95.7 | D7: 95.7 | E7: 95.3 | F7: 96 | G7: 0.1 | H7: 89.5 | I7: 88.5 | J7: 88.3 | K7: 89 | L7: 0.7 | M7: 48.54 | N7: 48.21 | O7: 47.87 | P7: 48 | Q7: 0.2
A8: 5 | B8: 10.5 | C8: 93.9 | D8: 93.7 | E8: 93.9 | F8: 94 | G8: 0.1 | H8: 93.2 | I8: 90.9 | J8: 91.4 | K8: 92 | L8: 1.7 | M8: 49.83 | N8: 48.91 | O8: 49.34 | P8: 49 | Q8: 0.5

Sheet Supplementary Table 12
C2: ee (S）-1b (%) | H2: ee (R）-1a (%) | M2: conv. 1a (%) | R2: E
A3: entry | B3: HheC | C3: Experiment1 | D3: Experiment2 | E3: Experiment3 | F3: Average (%) | G3: S.D. | H3: Experiment1 | I3: Experiment2 | J3: Experiment3 | K3: Average (%) | L3: S.D. | M3: Experiment1 | N3: Experiment2 | O3: Experiment3 | P3: Average (%) | Q3: S.D.
A4: 1 | B4: εM1 | C4: 54.2 | D4: 53.8 | E4: 53.6 | F4: =AVERAGE(C4:E4) -> 54 | G4: =STDEV(C4:E4) -> 0.3 | H4: 43.6 | I4: 41.9 | J4: 41.1 | K4: =AVERAGE(H4:J4) -> 42 | L4: =STDEV(H4:J4) -> 1.3 | M4: 44.57 | N4: 43.78 | O4: 43.41 | P4: =AVERAGE(M4:O4) -> 44 | Q4: =STDEV(M4:O4) -> 0.6 | R4: 5
A5: 2 | B5: εM2 | C5: 79.7 | D5: 79.4 | E5: 73.9 | F5: =AVERAGE(C5:E5) -> 78 | G5: =STDEV(C5:E5) -> 3.2 | H5: 98.4 | I5: 98.2 | J5: 98.4 | K5: =AVERAGE(H5:J5) -> 98 | L5: =STDEV(H5:J5) -> 0.1 | M5: 55.23 | N5: 55.30 | O5: 57.09 | P5: =AVERAGE(M5:O5) -> 56 | Q5: =STDEV(M5:O5) -> 1.1 | R5: 36
A6: 3 | B6: εM3 | C6: 93.7 | D6: 89.4 | E6: 93.6 | F6: 92 | G6: 2.5 | H6: 92.0 | I6: 96.3 | J6: 92.2 | K6: 94 | L6: 2.4 | M6: 49.55 | N6: 51.85 | O6: 49.63 | P6: 50 | Q6: 1.3 | R6: 85
A7: 4 | B7: εM4 | C7: 95.4 | D7: 95.4 | E7: 94.9 | F7: 95 | G7: 0.3 | H7: 74.2 | I7: 72.3 | J7: 74.7 | K7: 74 | L7: 1.3 | M7: 43.76 | N7: 43.13 | O7: 44.05 | P7: 44 | Q7: 0.3 | R7: 87
A8: 5 | B8: εM5 | C8: 96.2 | D8: 96.3 | E8: 96.4 | F8: 96 | G8: 0.1 | H8: 45.8 | I8: 46.4 | J8: 42.8 | K8: 45 | L8: 2.0 | M8: 32.25 | N8: 32.50 | O8: 30.73 | P8: 32 | Q8: 1.0 | R8: 76
A9: 6 | B9: εM6 | C9: 93.5 | D9: 93.9 | E9: 95.2 | F9: 94 | G9: 0.9 | H9: 96.7 | I9: 94.6 | J9: 90.2 | K9: 94 | L9: 3.3 | M9: 50.85 | N9: 50.19 | O9: 48.65 | P9: 50 | Q9: 1.1 | R9: 115
A10: 7 | B10: εM7 | C10: 95.5 | D10: 95.8 | E10: 95.2 | F10: 96 | G10: 0.4 | H10: 93.0 | I10: 91.7 | J10: 94.2 | K10: 93 | L10: 1.3 | M10: 49.32 | N10: 48.91 | O10: 49.73 | P10: 49 | Q10: 0.4 | R10: 168
A11: 8 | B11: εM8 | C11: 95.4 | D11: 95.3 | E11: 95.4 | F11: 95 | G11: 0.1 | H11: 91.5 | I11: 90.5 | J11: 90.0 | K11: 91 | L11: 0.8 | M11: 48.97 | N11: 48.71 | O11: 48.55 | P11: 49 | Q11: 0.2 | R11: 124

Sheet Supplementary Table 13
C2: ee (S）-2b (%) | H2: ee (R）-2a (%) | M2: conv. 2a (%) | R2: E
A3: entry | B3: HheC | C3: Experiment1 | D3: Experiment2 | E3: Experiment3 | F3: Average (%) | G3: S.D. | H3: Experiment1 | I3: Experiment2 | J3: Experiment3 | K3: Average (%) | L3: S.D. | M3: Experiment1 | N3: Experiment2 | O3: Experiment3 | P3: Average (%) | Q3: S.D.
A4: 1 | B4: εM1 | C4: 44.1 | D4: 44.8 | E4: 45.3 | F4: =AVERAGE(C4:E4) -> 45 | G4: =STDEV(C4:E4) -> 0.6 | H4: 30.0 | I4: 30.7 | J4: 30.6 | K4: =AVERAGE(H4:J4) -> 30 | L4: =STDEV(H4:J4) -> 0.4 | M4: 40.51 | N4: 40.69 | O4: 40.29 | P4: 41 | Q4: =STDEV(M4:O4) -> 0.2 | R4: 3
A5: 2 | B5: εM2 | C5: 80.2 | D5: 82.0 | E5: 80.2 | F5: =AVERAGE(C5:E5) -> 81 | G5: =STDEV(C5:E5) -> 1.0 | H5: 100.0 | I5: 100.0 | J5: 100.0 | K5: ＞99 | L5: =STDEV(H5:J5) -> 0.0 | M5: 55.48 | N5: 54.94 | O5: 55.49 | P5: =AVERAGE(M5:O5) -> 55 | Q5: =STDEV(M5:O5) -> 0.3 | R5: 49
A6: 3 | B6: εM3 | C6: 90.3 | D6: 89.1 | E6: 88.7 | F6: 89 | G6: 0.8 | H6: 94.0 | I6: 93.2 | J6: 92.4 | K6: =AVERAGE(H6:J6) -> 93 | L6: 0.8 | M6: 51.02 | N6: 51.12 | O6: 51.02 | P6: 51 | Q6: 0.1 | R6: 58
A7: 4 | B7: εM4 | C7: 97.5 | D7: 96.1 | E7: 96.0 | F7: 97 | G7: 0.8 | H7: 61.8 | I7: 61.4 | J7: 62.9 | K7: 62 | L7: 0.8 | M7: 38.82 | N7: 38.98 | O7: 39.59 | P7: 39 | Q7: 0.4 | R7: 124
A8: 5 | B8: εM5 | C8: 96.9 | D8: 96.3 | E8: 95.8 | F8: 96 | G8: 0.6 | H8: 48.8 | I8: 48.2 | J8: 47.4 | K8: 48 | L8: 0.7 | M8: 33.47 | N8: 33.37 | O8: 33.10 | P8: 33 | Q8: 0.2 | R8: 79
A9: 6 | B9: εM6 | C9: 88.3 | D9: 90.5 | E9: 89.6 | F9: 90 | G9: 1.1 | H9: 92.6 | I9: 94.9 | J9: 93.1 | K9: 94 | L9: 1.2 | M9: 51.18 | N9: 51.20 | O9: 50.94 | P9: 51 | Q9: 0.1 | R9: 67
A10: 7 | B10: εM7 | C10: 89.5 | D10: 90.6 | E10: 89.5 | F10: 90 | G10: 0.6 | H10: 95.5 | I10: 95.1 | J10: 95.0 | K10: 95 | L10: 0.2 | M10: 51.61 | N10: 51.21 | O10: 51.49 | P10: 51 | Q10: 0.2 | R10: 71
A11: 8 | B11: εM8 | C11: 89.3 | D11: 91.7 | E11: 89.3 | F11: 90 | G11: 1.4 | H11: 85.9 | I11: 85.7 | J11: 85.7 | K11: 86 | L11: 0.1 | M11: 49.05 | N11: 48.31 | O11: 48.97 | P11: 49 | Q11: 0.4 | R11: 53

Sheet Supplementary Table 14
C2: ee (S）-3b (%) | H2: ee (R）-3a (%) | M2: conv. 3a (%) | R2: E
A3: entry | B3: HheC | C3: Experiment1 | D3: Experiment2 | E3: Experiment3 | F3: Average (%) | G3: S.D. | H3: Experiment1 | I3: Experiment2 | J3: Experiment3 | K3: Average (%) | L3: S.D. | M3: Experiment1 | N3: Experiment2 | O3: Experiment3 | P3: Average (%) | Q3: S.D.
A4: 1 | B4: εM1 | C4: 100.0 | D4: 100.0 | E4: 100.0 | F4: ＞99 | G4: =STDEV(C4:E4) -> 0.0 | H4: 9.7 | I4: 9.6 | J4: 8.8 | K4: =AVERAGE(H4:J4) -> 9 | L4: =STDEV(H4:J4) -> 0.5 | M4: 8.81 | N4: 8.79 | O4: 8.06 | P4: =AVERAGE(M4:O4) -> 9 | Q4: =STDEV(M4:O4) -> 0.4 | R4: 218
A5: 2 | B5: εM2 | C5: 79.1 | D5: 78.7 | E5: 78.6 | F5: =AVERAGE(C5:E5) -> 79 | G5: =STDEV(C5:E5) -> 0.2 | H5: 96.4 | I5: 97.4 | J5: 97.1 | K5: =AVERAGE(H5:J5) -> 97 | L5: =STDEV(H5:J5) -> 0.6 | M5: 54.93 | N5: 55.34 | O5: 55.27 | P5: =AVERAGE(M5:O5) -> 55 | Q5: =STDEV(M5:O5) -> 0.2 | R5: 35
A6: 3 | B6: εM3 | C6: 78.3 | D6: 77.2 | E6: 78.6 | F6: 78 | G6: 0.7 | H6: 84.5 | I6: 84.1 | J6: 85.7 | K6: 85 | L6: 0.8 | M6: 51.91 | N6: 52.14 | O6: 52.17 | P6: 52 | Q6: 0.1 | R6: 22
A7: 4 | B7: εM4 | C7: 100.0 | D7: 100.0 | E7: 100.0 | F7: ＞99 | G7: 0.0 | H7: 29.2 | I7: 29.4 | J7: 30.3 | K7: 30 | L7: 0.6 | M7: 22.61 | N7: 22.72 | O7: 23.23 | P7: 23 | Q7: 0.3 | R7: 267
A8: 5 | B8: εM5 | C8: 100.0 | D8: 100.0 | E8: 100.0 | F8: ＞99 | G8: 0.0 | H8: 27.4 | I8: 27.7 | J8: 28.6 | K8: 28 | L8: 0.6 | M8: 21.51 | N8: 21.70 | O8: 22.25 | P8: 22 | Q8: 0.4 | R8: 262
A9: 6 | B9: εM6 | C9: 79.4 | D9: 80.8 | E9: 80.9 | F9: 80 | G9: 0.8 | H9: 66.0 | I9: 67.5 | J9: 67.9 | K9: 67 | L9: 1.0 | M9: 45.39 | N9: 45.53 | O9: 45.64 | P9: 46 | Q9: 0.1 | R9: 18
A10: 7 | B10: εM7 | C10: 81.4 | D10: 82.6 | E10: 82.8 | F10: 82 | G10: 0.8 | H10: 72.6 | I10: 73.7 | J10: 73.7 | K10: 73 | L10: 0.7 | M10: 47.13 | N10: 47.14 | O10: 47.09 | P10: 47 | Q10: 0.0 | R10: 22
A11: 8 | B11: εM8 | C11: 85.7 | D11: 87.4 | E11: 88.1 | F11: 87 | G11: 1.2 | H11: 50.2 | I11: 52.0 | J11: 49.9 | K11: 51 | L11: 1.1 | M11: 36.93 | N11: 37.31 | O11: 36.16 | P11: 37 | Q11: 0.6 | R11: 24

Sheet Supplementary Table 15
C2: ee (S）-4b (%) | H2: ee (R）-4a (%) | M2: conv. 4a (%) | R2: E
A3: entry | B3: HheC | C3: Experiment1 | D3: Experiment2 | E3: Experiment3 | F3: Average (%) | G3: S.D. | H3: Experiment1 | I3: Experiment2 | J3: Experiment3 | K3: Average (%) | L3: S.D. | M3: Experiment1 | N3: Experiment2 | O3: Experiment3 | P3: Average (%) | Q3: S.D.
A4: 1 | B4: εM1 | C4: 71.7 | D4: 73.4 | E4: 72.5 | F4: =AVERAGE(C4:E4) -> 73 | G4: =STDEV(C4:E4) -> 0.9 | H4: 10.5 | I4: 10.5 | J4: 10.2 | K4: =AVERAGE(H4:J4) -> 10 | L4: =STDEV(H4:J4) -> 0.2 | M4: 12.77 | N4: 12.47 | O4: 12.31 | P4: =AVERAGE(M4:O4) -> 13 | Q4: =STDEV(M4:O4) -> 0.2 | R4: 7
A5: 2 | B5: εM2 | C5: 65.1 | D5: 62.5 | E5: 64.4 | F5: 64 | G5: =STDEV(C5:E5) -> 1.4 | H5: 94.8 | I5: 97.3 | J5: 94.5 | K5: =AVERAGE(H5:J5) -> 96 | L5: =STDEV(H5:J5) -> 1.5 | M5: 59.30 | N5: 60.89 | O5: 59.48 | P5: =AVERAGE(M5:O5) -> 60 | Q5: =STDEV(M5:O5) -> 0.9 | R5: 17
A6: 3 | B6: εM3 | C6: 83.2 | D6: 83.6 | E6: 83.7 | F6: 84 | G6: 0.2 | H6: 72.5 | I6: 74.2 | J6: 70.8 | K6: 73 | L6: 1.7 | M6: 46.55 | N6: 47.03 | O6: 45.83 | P6: 47 | Q6: 0.6 | R6: 25
A7: 4 | B7: εM4 | C7: 86.5 | D7: 87.9 | E7: 87.9 | F7: 87 | G7: 0.8 | H7: 27.7 | I7: 27.2 | J7: 27.7 | K7: 28 | L7: 0.3 | M7: 24.23 | N7: 23.66 | O7: 23.93 | P7: 24 | Q7: 0.3 | R7: 19
A8: 5 | B8: εM5 | C8: 90.0 | D8: 91.5 | E8: 88.8 | F8: 90 | G8: 1.4 | H8: 28.2 | I8: 28.9 | J8: 28.7 | K8: 29 | L8: 0.4 | M8: 23.85 | N8: 24.00 | O8: 24.46 | P8: 24 | Q8: 0.3 | R8: 23
A9: 6 | B9: εM6 | C9: 80.3 | D9: 79.4 | E9: 79.6 | F9: 80 | G9: 0.5 | H9: 80.3 | I9: 79.2 | J9: 79.7 | K9: 80 | L9: 0.5 | M9: 49.99 | N9: 49.93 | O9: 50.01 | P9: 50 | Q9: 0.0 | R9: 22
A10: 7 | B10: εM7 | C10: 82.7 | D10: 84.3 | E10: 84.3 | F10: 84 | G10: 0.9 | H10: 74.2 | I10: 73.8 | J10: 73.8 | K10: 74 | L10: 0.2 | M10: 47.29 | N10: 46.70 | O10: 46.68 | P10: 47 | Q10: 0.3 | R10: 25
A11: 8 | B11: εM8 | C11: 88.8 | D11: 88.0 | E11: 88.0 | F11: 88 | G11: 0.5 | H11: 49.8 | I11: 50.0 | J11: 49.8 | K11: 50 | L11: 0.1 | M11: 35.93 | N11: 36.23 | O11: 36.12 | P11: 36 | Q11: 0.1 | R11: 26

Sheet Supplementary Table 16
C2: ee (S）-5b (%) | H2: ee (R）-5a (%) | M2: conv. 5a (%) | R2: E
A3: entry | B3: HheC | C3: Experiment1 | D3: Experiment2 | E3: Experiment3 | F3: Average (%) | G3: S.D. | H3: Experiment1 | I3: Experiment2 | J3: Experiment3 | K3: Average (%) | L3: S.D. | M3: Experiment1 | N3: Experiment2 | O3: Experiment3 | P3: Average (%) | Q3: S.D.
A4: 1 | B4: εM1 | C4: 74.4 | D4: 74.4 | E4: 74.7 | F4: 75 | G4: =STDEV(C4:E4) -> 0.2 | H4: 21.4 | I4: 24.0 | J4: 20.7 | K4: =AVERAGE(H4:J4) -> 22 | L4: =STDEV(H4:J4) -> 1.7 | M4: 22.37 | N4: 24.38 | O4: 21.74 | P4: =AVERAGE(M4:O4) -> 23 | Q4: =STDEV(M4:O4) -> 1.4 | R4: 9
A5: 2 | B5: εM2 | C5: 49.2 | D5: 50.8 | E5: 50.1 | F5: =AVERAGE(C5:E5) -> 50 | G5: =STDEV(C5:E5) -> 0.8 | H5: 100.0 | I5: 100.0 | J5: 100.0 | K5: ＞99 | L5: =STDEV(H5:J5) -> 0.0 | M5: 67.01 | N5: 66.31 | O5: 66.63 | P5: =AVERAGE(M5:O5) -> 67 | Q5: =STDEV(M5:O5) -> 0.4 | R5: 14
A6: 3 | B6: εM3 | C6: 82.4 | D6: 83.1 | E6: 82.6 | F6: 83 | G6: 0.4 | H6: 97.3 | I6: 98.8 | J6: 98.7 | K6: =AVERAGE(H6:J6) -> 98 | L6: 0.9 | M6: 54.13 | N6: 54.32 | O6: 54.46 | P6: 54 | Q6: 0.2 | R6: 49
A7: 4 | B7: εM4 | C7: 83.5 | D7: 82.2 | E7: 83.8 | F7: 83 | G7: 0.9 | H7: 29.8 | I7: 26.5 | J7: 26.9 | K7: 28 | L7: 1.8 | M7: 26.31 | N7: 24.35 | O7: 24.30 | P7: 25 | Q7: 1.1 | R7: 14
A8: 5 | B8: εM5 | C8: 89.5 | D8: 90.6 | E8: 91.0 | F8: 90 | G8: 0.8 | H8: 40.2 | I8: 37.0 | J8: 36.8 | K8: 38 | L8: 1.9 | M8: 30.99 | N8: 28.97 | O8: 28.77 | P8: 30 | Q8: 1.2 | R8: 28
A9: 6 | B9: εM6 | C9: 79.6 | D9: 80.4 | E9: 78.3 | F9: 79 | G9: 1.1 | H9: 97.9 | I9: 99.5 | J9: 99.6 | K9: 99 | L9: 1.0 | M9: 55.15 | N9: 55.28 | O9: 55.98 | P9: 56 | Q9: 0.4 | R9: 44
A10: 7 | B10: εM7 | C10: 87.1 | D10: 84.2 | E10: 84.5 | F10: 85 | G10: 1.6 | H10: 87.4 | I10: 96.0 | J10: 94.8 | K10: 93 | L10: 4.7 | M10: 50.09 | N10: 53.26 | O10: 52.86 | P10: 52 | Q10: 1.7 | R10: 42
A11: 8 | B11: εM8 | C11: 85.6 | D11: 88.6 | E11: 87.6 | F11: 87 | G11: 1.5 | H11: 75.9 | I11: 63.8 | J11: 64.7 | K11: 68 | L11: 6.7 | M11: 47.01 | N11: 41.89 | O11: 42.51 | P11: 44 | Q11: 2.8 | R11: 29

Sheet Supplementary Table 17
C2: ee (S）-6b (%) | H2: ee (R）-6a (%) | M2: conv. 6a (%) | R2: E
A3: entry | B3: HheC | C3: Experiment1 | D3: Experiment2 | E3: Experiment3 | F3: Average (%) | G3: S.D. | H3: Experiment1 | I3: Experiment2 | J3: Experiment3 | K3: Average (%) | L3: S.D. | M3: Experiment1 | N3: Experiment2 | O3: Experiment3 | P3: Average (%) | Q3: S.D.
A4: 1 | B4: εM1 | C4: 33.1 | D4: 31.7 | E4: 34.5 | F4: =AVERAGE(C4:E4) -> 33 | G4: =STDEV(C4:E4) -> 1.4 | H4: 53.8 | I4: 53.1 | J4: 50.4 | K4: =AVERAGE(H4:J4) -> 52 | L4: =STDEV(H4:J4) -> 1.8 | M4: 61.94 | N4: 62.62 | O4: 59.36 | P4: =AVERAGE(M4:O4) -> 61 | Q4: =STDEV(M4:O4) -> 1.7 | R4: 3
A5: 2 | B5: εM2 | C5: 54.9 | D5: 51.0 | E5: 54.3 | F5: 53 | G5: =STDEV(C5:E5) -> 2.1 | H5: 100.0 | I5: 100.0 | J5: 100.0 | K5: ＞99 | L5: =STDEV(H5:J5) -> 0.0 | M5: 64.56 | N5: 66.23 | O5: 64.80 | P5: =AVERAGE(M5:O5) -> 65 | Q5: =STDEV(M5:O5) -> 0.9 | R5: 15
A6: 3 | B6: εM3 | C6: 91.1 | D6: 90.4 | E6: 92.2 | F6: 91 | G6: 0.9 | H6: 66.3 | I6: 68.9 | J6: 68.7 | K6: =AVERAGE(H6:J6) -> 68 | L6: 1.4 | M6: 42.13 | N6: 43.24 | O6: 42.70 | P6: 43 | Q6: 0.6 | R6: 43
A7: 4 | B7: εM4 | C7: 90.6 | D7: 91.5 | E7: 91.4 | F7: 91 | G7: 0.5 | H7: 91.9 | I7: 90.6 | J7: 90.3 | K7: 91 | L7: 0.8 | M7: 50.36 | N7: 49.76 | O7: 49.70 | P7: 50 | Q7: 0.4 | R7: 67
A8: 5 | B8: εM5 | C8: 93.4 | D8: 93.9 | E8: 93.1 | F8: 94 | G8: 0.4 | H8: 29.8 | I8: 29.9 | J8: 29.5 | K8: 30 | L8: 0.2 | M8: 24.21 | N8: 24.18 | O8: 24.08 | P8: 24 | Q8: 0.1 | R8: 43
A9: 6 | B9: εM6 | C9: 92.4 | D9: 92.3 | E9: 92.6 | F9: 92 | G9: 0.1 | H9: 64.5 | I9: 63.6 | J9: 63.6 | K9: 64 | L9: 0.6 | M9: 41.12 | N9: 40.79 | O9: 40.71 | P9: 41 | Q9: 0.2 | R9: 46
A10: 7 | B10: εM7 | C10: 87.8 | D10: 90.2 | E10: 91.0 | F10: 90 | G10: 1.6 | H10: 84.0 | I10: 71.9 | J10: 71.2 | K10: 76 | L10: 7.2 | M10: 48.89 | N10: 44.35 | O10: 43.92 | P10: 46 | Q10: 2.8 | R10: 44
A11: 8 | B11: εM8 | C11: 93.3 | D11: 93.2 | E11: 92.9 | F11: 93 | G11: 0.2 | H11: 55.0 | I11: 57.5 | J11: 58.4 | K11: 57 | L11: 1.8 | M11: 37.08 | N11: 38.15 | O11: 38.59 | P11: 38 | Q11: 0.8 | R11: 49

Sheet Supplementary Table 18
C2: ee (S）-7b (%) | H2: ee (R）-7a (%) | M2: conv. 7a (%) | R2: E
A3: entry | B3: HheC | C3: Experiment1 | D3: Experiment2 | E3: Experiment3 | F3: Average (%) | G3: S.D. | H3: Experiment1 | I3: Experiment2 | J3: Experiment3 | K3: Average (%) | L3: S.D. | M3: Experiment1 | N3: Experiment2 | O3: Experiment3 | P3: Average (%) | Q3: S.D.
A4: 1 | B4: εM1 | C4: 33.3 | D4: 34.3 | E4: 34.1 | F4: =AVERAGE(C4:E4) -> 34 | G4: =STDEV(C4:E4) -> 0.5 | H4: 14.6 | I4: 13.3 | J4: 14.4 | K4: =AVERAGE(H4:J4) -> 14 | L4: =STDEV(H4:J4) -> 0.7 | M4: 30.49 | N4: 27.95 | O4: 29.64 | P4: =AVERAGE(M4:O4) -> 29 | Q4: =STDEV(M4:O4) -> 1.3 | R4: 2
A5: 2 | B5: εM2 | C5: 64.1 | D5: 61.8 | E5: 63.9 | F5: 63 | G5: =STDEV(C5:E5) -> 1.3 | H5: 100.0 | I5: 100.0 | J5: 100.0 | K5: ＞99 | L5: =STDEV(H5:J5) -> 0.0 | M5: 60.94 | N5: 61.80 | O5: 61.00 | P5: =AVERAGE(M5:O5) -> 61 | Q5: =STDEV(M5:O5) -> 0.5 | R5: 22
A6: 3 | B6: εM3 | C6: 90.7 | D6: 90.9 | E6: 90.5 | F6: 91 | G6: 0.2 | H6: 33.0 | I6: 38.4 | J6: 34.2 | K6: =AVERAGE(H6:J6) -> 35 | L6: 2.9 | M6: 26.67 | N6: 29.73 | O6: 27.40 | P6: 28 | Q6: 1.6 | R6: 30
A7: 4 | B7: εM4 | C7: 91.4 | D7: 91.4 | E7: 91.3 | F7: 91 | G7: 0.1 | H7: 58.3 | I7: 57.7 | J7: 61.0 | K7: 59 | L7: 1.8 | M7: 38.92 | N7: 38.69 | O7: 40.06 | P7: 39 | Q7: 0.7 | R7: 39
A8: 5 | B8: εM5 | C8: 90.6 | D8: 90.6 | E8: 90.4 | F8: 91 | G8: 0.1 | H8: 17.9 | I8: 19.0 | J8: 17.7 | K8: 18 | L8: 0.7 | M8: 16.54 | N8: 17.34 | O8: 16.38 | P8: 17 | Q8: 0.5 | R8: 25
A9: 6 | B9: εM6 | C9: 89.0 | D9: 88.6 | E9: 88.3 | F9: 89 | G9: 0.4 | H9: 71.5 | I9: 74.4 | J9: 75.4 | K9: 74 | L9: 2.0 | M9: 44.54 | N9: 45.62 | O9: 46.06 | P9: 45 | Q9: 0.8 | R9: 38
A10: 7 | B10: εM7 | C10: 89.5 | D10: 89.3 | E10: 89.4 | F10: 89 | G10: 0.1 | H10: 56.1 | I10: 53.4 | J10: 56.6 | K10: 55 | L10: 1.7 | M10: 38.51 | N10: 37.42 | O10: 38.75 | P10: 38 | Q10: 0.7 | R10: 30
A11: 8 | B11: εM8 | C11: 90.2 | D11: 90.7 | E11: 90.5 | F11: 90 | G11: 0.3 | H11: 61.6 | I11: 59.3 | J11: 58.2 | K11: 60 | L11: 1.7 | M11: 40.57 | N11: 39.54 | O11: 39.15 | P11: 40 | Q11: 0.7 | R11: 35

Sheet Supplementary Table 19
C2: ee (S）-8b (%) | H2: ee (R）-8a (%) | M2: conv. 8a (%) | R2: E
A3: entry | B3: HheC | C3: Experiment1 | D3: Experiment2 | E3: Experiment3 | F3: Average (%) | G3: S.D. | H3: Experiment1 | I3: Experiment2 | J3: Experiment3 | K3: Average (%) | L3: S.D. | M3: Experiment1 | N3: Experiment2 | O3: Experiment3 | P3: Average (%) | Q3: S.D.
A4: 1 | B4: εM1 | C4: 6.2 | D4: 6.3 | E4: 4.5 | F4: =AVERAGE(C4:E4) -> 6 | G4: =STDEV(C4:E4) -> 1.0 | H4: 6.5 | I4: 5.5 | J4: 5.0 | K4: =AVERAGE(H4:J4) -> 6 | L4: =STDEV(H4:J4) -> 0.8 | M4: 51.16 | N4: 46.84 | O4: 52.66 | P4: =AVERAGE(M4:O4) -> 50 | Q4: =STDEV(M4:O4) -> 3.0 | R4: 1
A5: 2 | B5: εM2 | C5: 50.0 | D5: 51.4 | E5: 52.8 | F5: 51 | G5: =STDEV(C5:E5) -> 1.4 | H5: 54.2 | I5: 53.4 | J5: 51.8 | K5: =AVERAGE(H5:J5) -> 53 | L5: =STDEV(H5:J5) -> 1.2 | M5: 52.02 | N5: 50.93 | O5: 49.52 | P5: =AVERAGE(M5:O5) -> 51 | Q5: =STDEV(M5:O5) -> 1.3 | R5: 5
A6: 3 | B6: εM3 | C6: 65.2 | D6: 64.4 | E6: 65.4 | F6: 65 | G6: 0.6 | H6: 33.5 | I6: 32.1 | J6: 32.9 | K6: 33 | L6: 0.7 | M6: 33.95 | N6: 33.29 | O6: 33.48 | P6: 34 | Q6: 0.3 | R6: 6
A7: 4 | B7: εM4 | C7: 71.6 | D7: 72.4 | E7: 72.7 | F7: 72 | G7: 0.6 | H7: 11.9 | I7: 11.6 | J7: 12.3 | K7: 12 | L7: 0.3 | M7: 14.28 | N7: 13.83 | O7: 14.45 | P7: 14 | Q7: 0.3 | R7: 7
A8: 5 | B8: εM5 | C8: 58.3 | D8: 57.2 | E8: 60.0 | F8: 59 | G8: 1.4 | H8: 6.4 | I8: 8.8 | J8: 7.6 | K8: 8 | L8: 1.2 | M8: 9.83 | N8: 13.33 | O8: 11.29 | P8: 12 | Q8: 1.8 | R8: 4
A9: 6 | B9: εM6 | C9: 63.6 | D9: 63.5 | E9: 63.8 | F9: 64 | G9: 0.2 | H9: 28.3 | I9: 34.1 | J9: 28.5 | K9: 30 | L9: 3.3 | M9: 30.80 | N9: 34.98 | O9: 30.89 | P9: 32 | Q9: 2.4 | R9: 6
A10: 7 | B10: εM7 | C10: 59.5 | D10: 58.9 | E10: 58.7 | F10: 59 | G10: 0.4 | H10: 62.1 | I10: 61.2 | J10: 62.9 | K10: 62 | L10: 0.8 | M10: 51.05 | N10: 50.94 | O10: 51.72 | P10: 51 | Q10: 0.4 | R10: 7
A11: 8 | B11: εM8 | C11: 68.3 | D11: 70.0 | E11: 68.1 | F11: 69 | G11: 1.0 | H11: 23.3 | I11: 29.6 | J11: 23.8 | K11: 26 | L11: 3.5 | M11: 25.46 | N11: 29.71 | O11: 25.87 | P11: 27 | Q11: 2.3 | R11: 7

Sheet Supplementary Table 20
C2: ee (S）-9b (%) | H2: ee (R）-9a (%) | M2: conv. 9a (%) | R2: E
A3: entry | B3: HheC | C3: Experiment1 | D3: Experiment2 | E3: Experiment3 | F3: Average (%) | G3: S.D. | H3: Experiment1 | I3: Experiment2 | J3: Experiment3 | K3: Average (%) | L3: S.D. | M3: Experiment1 | N3: Experiment2 | O3: Experiment3 | P3: Average (%) | Q3: S.D.
A4: 1 | B4: εM1 | C4: 52.0 | D4: 52.2 | E4: 51.8 | F4: =AVERAGE(C4:E4) -> 52 | G4: =STDEV(C4:E4) -> 0.2 | H4: 18.7 | I4: 18.8 | J4: 18.8 | K4: =AVERAGE(H4:J4) -> 19 | L4: =STDEV(H4:J4) -> 0.0 | M4: 26.47 | N4: 26.43 | O4: 26.59 | P4: 27 | Q4: =STDEV(M4:O4) -> 0.1 | R4: 4
A5: 2 | B5: εM2 | C5: 53.8 | D5: 55.0 | E5: 54.4 | F5: 54 | G5: =STDEV(C5:E5) -> 0.6 | H5: 87.1 | I5: 86.3 | J5: 85.8 | K5: =AVERAGE(H5:J5) -> 86 | L5: =STDEV(H5:J5) -> 0.7 | M5: 61.83 | N5: 61.09 | O5: 61.19 | P5: =AVERAGE(M5:O5) -> 61 | Q5: =STDEV(M5:O5) -> 0.4 | R5: 9
A6: 3 | B6: εM3 | C6: 64.8 | D6: 64.6 | E6: 63.9 | F6: 64 | G6: 0.5 | H6: 40.0 | I6: 39.9 | J6: 39.7 | K6: 40 | L6: 0.1 | M6: 38.16 | N6: 38.20 | O6: 38.34 | P6: 38 | Q6: 0.1 | R6: 7
A7: 4 | B7: εM4 | C7: 79.1 | D7: 78.7 | E7: 77.5 | F7: 79 | G7: 0.8 | H7: 22.4 | I7: 22.7 | J7: 22.3 | K7: 23 | L7: 0.2 | M7: 22.09 | N7: 22.38 | O7: 22.30 | P7: 22 | Q7: 0.2 | R7: 11
A8: 5 | B8: εM5 | C8: 80.0 | D8: 78.6 | E8: 79.1 | F8: 79 | G8: 0.7 | H8: 16.6 | I8: 16.2 | J8: 16.1 | K8: 16 | L8: 0.2 | M8: 17.17 | N8: 17.06 | O8: 16.95 | P8: 17 | Q8: 0.1 | R8: 10
A9: 6 | B9: εM6 | C9: 74.0 | D9: 74.0 | E9: 74.3 | F9: 74 | G9: 0.2 | H9: 27.2 | I9: 26.5 | J9: 26.3 | K9: 27 | L9: 0.5 | M9: 26.86 | N9: 26.40 | O9: 26.14 | P9: 27 | Q9: 0.4 | R9: 9
A10: 7 | B10: εM7 | C10: 56.0 | D10: 56.4 | E10: 56.0 | F10: 56 | G10: 0.2 | H10: 44.3 | I10: 44.8 | J10: 44.6 | K10: 45 | L10: 0.3 | M10: 44.17 | N10: 44.29 | O10: 44.34 | P10: 44 | Q10: 0.1 | R10: 5
A11: 8 | B11: εM8 | C11: 69.5 | D11: 69.5 | E11: 70.0 | F11: 70 | G11: 0.3 | H11: 30.9 | I11: 31.1 | J11: 29.3 | K11: 30 | L11: 1.0 | M11: 30.74 | N11: 30.91 | O11: 29.53 | P11: 30 | Q11: 0.8 | R11: 8

Sheet Supplementary Table 21
C2: ee (S）-10b (%) | H2: ee (R）-10a (%) | M2: conv. 10a (%) | R2: E
A3: entry | B3: HheC | C3: Experiment1 | D3: Experiment2 | E3: Experiment3 | F3: Average (%) | G3: S.D. | H3: Experiment1 | I3: Experiment2 | J3: Experiment3 | K3: Average (%) | L3: S.D. | M3: Experiment1 | N3: Experiment2 | O3: Experiment3 | P3: Average (%) | Q3: S.D.
A4: 1 | B4: εM1 | C4: 64.7 | D4: 64.4 | E4: 65.0 | F4: =AVERAGE(C4:E4) -> 65 | G4: =STDEV(C4:E4) -> 0.3 | H4: 44.9 | I4: 44.5 | J4: 44.4 | K4: =AVERAGE(H4:J4) -> 45 | L4: =STDEV(H4:J4) -> 0.3 | M4: 40.97 | N4: 40.87 | O4: 40.55 | P4: =AVERAGE(M4:O4) -> 41 | Q4: =STDEV(M4:O4) -> 0.2 | R4: 7
A5: 2 | B5: εM2 | C5: 83.5 | D5: 82.7 | E5: 81.8 | F5: 83 | G5: =STDEV(C5:E5) -> 0.8 | H5: 100.0 | I5: 100.0 | J5: 100.0 | K5: ＞99 | L5: =STDEV(H5:J5) -> 0.0 | M5: 54.50 | N5: 54.74 | O5: 55.00 | P5: =AVERAGE(M5:O5) -> 55 | Q5: =STDEV(M5:O5) -> 0.3 | R5: 56
A6: 3 | B6: εM3 | C6: 95.8 | D6: 96.4 | E6: 96.7 | F6: 96 | G6: 0.4 | H6: 64.2 | I6: 64.4 | J6: 66.6 | K6: =AVERAGE(H6:J6) -> 65 | L6: 1.4 | M6: 40.11 | N6: 40.04 | O6: 40.80 | P6: 40 | Q6: 0.4 | R6: 96
A7: 4 | B7: εM4 | C7: 93.5 | D7: 93.5 | E7: 92.6 | F7: 93 | G7: 0.5 | H7: 68.6 | I7: 66.8 | J7: 68.2 | K7: 68 | L7: 0.9 | M7: 42.30 | N7: 41.68 | O7: 42.42 | P7: 42 | Q7: 0.4 | R7: 56
A8: 5 | B8: εM5 | C8: 97.6 | D8: 98.3 | E8: 97.3 | F8: 98 | G8: 0.5 | H8: 22.1 | I8: 23.0 | J8: 23.4 | K8: 23 | L8: 0.7 | M8: 18.47 | N8: 18.99 | O8: 19.40 | P8: 19 | Q8: 0.5 | R8: 124
A9: 6 | B9: εM6 | C9: 94.3 | D9: 95.3 | E9: 94.9 | F9: 95 | G9: 0.5 | H9: 72.8 | I9: 71.8 | J9: 71.7 | K9: 72 | L9: 0.6 | M9: 43.55 | N9: 42.98 | O9: 43.01 | P9: 43 | Q9: 0.3 | R9: 84
A10: 7 | B10: εM7 | C10: 96.0 | D10: 95.7 | E10: 96.1 | F10: 96 | G10: 0.2 | H10: 81.5 | I10: 83.8 | J10: 83.8 | K10: 83 | L10: 1.3 | M10: 45.93 | N10: 46.70 | O10: 46.58 | P10: 46 | Q10: 0.4 | R10: 128
A11: 8 | B11: εM8 | C11: 96.2 | D11: 95.9 | E11: 96.3 | F11: 96 | G11: 0.2 | H11: 65.9 | I11: 66.8 | J11: 66.2 | K11: 66 | L11: 0.5 | M11: 40.64 | N11: 41.05 | O11: 40.73 | P11: 41 | Q11: 0.2 | R11: 98

Sheet Supplementary Table 22
A2: entry | B2: HheC | C2: ee (S）-11b (%) | D2: ee (R）-11a (%) | E2: conv. 11a (%) | F2: E
A3: 1 | B3: εM1 | C3: 57.9 | D3: 5.8 | E3: 9.04 | F3: 4
A4: 2 | B4: εM2 | C4: 69.6 | D4: 72.5 | E4: 51.04 | F4: 12
A5: 3 | B5: εM3 | C5: 91.3 | D5: 50.9 | E5: 35.79 | F5: 35
A6: 4 | B6: εM4 | C6: 83.6 | D6: 16.2 | E6: 16.23 | F6: 13
A7: 5 | B7: εM5 | C7: 85.6 | D7: 12.8 | E7: 13.02 | F7: 15
A8: 6 | B8: εM6 | C8: 91.3 | D8: 68.3 | E8: 42.79 | F8: 43
A9: 7 | B9: εM7 | C9: 76.6 | D9: 99.2 | E9: 56.43 | F9: 39
A10: 8 | B10: εM8 | C10: 84.1 | D10: 29.3 | E10: 25.82 | F10: 15

Sheet Supplementary Table 23
C2: ee (S）-1b (%) | H2: ee (R）-12a (%) | M2: conv. 12a (%) | R2: E
A3: entry | B3: HheC | C3: Experiment1 | D3: Experiment2 | E3: Experiment3 | F3: Average (%) | G3: S.D. | H3: Experiment1 | I3: Experiment2 | J3: Experiment3 | K3: Average (%) | L3: S.D. | M3: Experiment1 | N3: Experiment2 | O3: Experiment3 | P3: Average (%) | Q3: S.D.
A4: 1 | B4: εM1 | C4: 51.2 | D4: 52.4 | E4: 50.6 | F4: =AVERAGE(C4:E4) -> 51 | G4: =STDEV(C4:E4) -> 0.9 | H4: 44.3 | I4: 47.2 | J4: 49.7 | K4: =AVERAGE(H4:J4) -> 47 | L4: =STDEV(H4:J4) -> 2.7 | M4: 46.37 | N4: 47.40 | O4: 49.59 | P4: =AVERAGE(M4:O4) -> 48 | Q4: =STDEV(M4:O4) -> 1.6 | R4: 5
A5: 2 | B5: εM2 | C5: 83.5 | D5: 83.4 | E5: 84.7 | F5: 84 | G5: =STDEV(C5:E5) -> 0.7 | H5: 97.9 | I5: 97.6 | J5: 97.1 | K5: =AVERAGE(H5:J5) -> 98 | L5: =STDEV(H5:J5) -> 0.4 | M5: 53.98 | N5: 53.94 | O5: 53.42 | P5: =AVERAGE(M5:O5) -> 54 | Q5: =STDEV(M5:O5) -> 0.3 | R5: 52
A6: 3 | B6: εM3 | C6: 95.0 | D6: 94.1 | E6: 94.9 | F6: 95 | G6: 0.5 | H6: 83.1 | I6: 84.1 | J6: 82.8 | K6: 83 | L6: 0.7 | M6: 46.66 | N6: 47.21 | O6: 46.58 | P6: 47 | Q6: 0.3 | R6: 102
A7: 4 | B7: εM4 | C7: 95.6 | D7: 95.5 | E7: 96.0 | F7: 96 | G7: 0.2 | H7: 66.4 | I7: 64.7 | J7: 62.9 | K7: 65 | L7: 1.7 | M7: 40.97 | N7: 40.36 | O7: 39.59 | P7: 40 | Q7: 0.7 | R7: 96
A8: 5 | B8: εM5 | C8: 96.3 | D8: 96.8 | E8: 97.0 | F8: 97 | G8: 0.4 | H8: 41.2 | I8: 40.6 | J8: 38.8 | K8: 40 | L8: 1.2 | M8: 29.96 | N8: 29.55 | O8: 28.56 | P8: 29 | Q8: 0.7 | R8: 97
A9: 6 | B9: εM6 | C9: 91.4 | D9: 91.2 | E9: 91.8 | F9: 91 | G9: 0.3 | H9: 96.5 | I9: 95.8 | J9: 96.1 | K9: 96 | L9: 0.3 | M9: 51.36 | N9: 51.24 | O9: 51.16 | P9: 51 | Q9: 0.1 | R9: 83
A10: 7 | B10: εM7 | C10: 93.2 | D10: 93.8 | E10: 94.1 | F10: 94 | G10: 0.4 | H10: 93.5 | I10: 93.8 | J10: 92.9 | K10: 93 | L10: 0.4 | M10: 50.07 | N10: 49.98 | O10: 49.69 | P10: 50 | Q10: 0.2 | R10: 110
A11: 8 | B11: εM8 | C11: 93.5 | D11: 93.1 | E11: 93.2 | F11: 93 | G11: 0.2 | H11: 94.9 | I11: 95.6 | J11: 95.9 | K11: 96 | L11: 0.5 | M11: 50.36 | N11: 50.67 | O11: 50.72 | P11: 51 | Q11: 0.2 | R11: 109

Sheet Supplementary Table 24
C2: ee (S）-13b (%) | H2: ee (R）-13a (%) | M2: conv. 13a (%) | R2: E
A3: entry | B3: HheC | C3: Experiment1 | D3: Experiment2 | E3: Experiment3 | F3: Average (%) | G3: S.D. | H3: Experiment1 | I3: Experiment2 | J3: Experiment3 | K3: Average (%) | L3: S.D. | M3: Experiment1 | N3: Experiment2 | O3: Experiment3 | P3: Average (%) | Q3: S.D.
A4: 1 | B4: εM1 | C4: 56.9 | D4: 57.9 | E4: 56.6 | F4: =AVERAGE(C4:E4) -> 57 | G4: =STDEV(C4:E4) -> 0.7 | H4: 58.6 | I4: 58.6 | J4: 60.4 | K4: =AVERAGE(H4:J4) -> 59 | L4: =STDEV(H4:J4) -> 1.0 | M4: 50.75 | N4: 50.31 | O4: 51.62 | P4: =AVERAGE(M4:O4) -> 51 | Q4: =STDEV(M4:O4) -> 0.7 | R4: 6
A5: 2 | B5: εM2 | C5: 13.7 | D5: 14.5 | E5: 13.5 | F5: 14 | G5: =STDEV(C5:E5) -> 0.5 | H5: 10.4 | I5: 10.5 | J5: 10.5 | K5: 11 | L5: =STDEV(H5:J5) -> 0.1 | M5: 43.21 | N5: 41.99 | O5: 43.85 | P5: =AVERAGE(M5:O5) -> 43 | Q5: =STDEV(M5:O5) -> 0.9 | R5: 1
A6: 3 | B6: εM3 | C6: 14.4 | D6: 14.9 | E6: 14.2 | F6: 15 | G6: 0.4 | H6: 12.3 | I6: 11.9 | J6: 12.1 | K6: =AVERAGE(H6:J6) -> 12 | L6: 0.2 | M6: 46.05 | N6: 44.38 | O6: 45.98 | P6: 46 | Q6: 0.9 | R6: 2
A7: 4 | B7: εM4 | C7: 13.1 | D7: 13.3 | E7: 12.6 | F7: 13 | G7: 0.4 | H7: 4.4 | I7: 4.3 | J7: 4.3 | K7: 4 | L7: 0.0 | M7: 24.95 | N7: 24.62 | O7: 25.63 | P7: 25 | Q7: 0.5 | R7: 1
A8: 5 | B8: εM5 | C8: 13.2 | D8: 14.2 | E8: 13.4 | F8: 14 | G8: 0.5 | H8: 4.7 | I8: 4.4 | J8: 4.6 | K8: 5 | L8: 0.1 | M8: 26.18 | N8: 23.82 | O8: 25.69 | P8: 25 | Q8: 1.2 | R8: 1
A9: 6 | B9: εM6 | C9: 14.6 | D9: 14.5 | E9: 14.3 | F9: 15 | G9: 0.1 | H9: 19.3 | I9: 19.8 | J9: 19.8 | K9: 20 | L9: 0.3 | M9: 56.98 | N9: 57.72 | O9: 58.08 | P9: 58 | Q9: 0.6 | R9: 2
A10: 7 | B10: εM7 | C10: 21.1 | D10: 20.9 | E10: 20.4 | F10: 21 | G10: 0.4 | H10: 18.2 | I10: 18.8 | J10: 17.8 | K10: 18 | L10: 0.5 | M10: 46.23 | N10: 47.33 | O10: 46.48 | P10: 47 | Q10: 0.6 | R10: 2
A11: 8 | B11: εM8 | C11: 19.1 | D11: 18.8 | E11: 18.5 | F11: 19 | G11: 0.3 | H11: 14.6 | I11: 15.2 | J11: 15.0 | K11: 15 | L11: 0.3 | M11: 43.18 | N11: 44.72 | O11: 44.84 | P11: 44 | Q11: 0.9 | R11: 2

Sheet Supplementary Table 25
C2: ee (S）-2b (%) | H2: ee (R）-14a (%) | M2: conv. 14a (%) | R2: E
A3: entry | B3: HheC | C3: Experiment1 | D3: Experiment2 | E3: Experiment3 | F3: Average (%) | G3: S.D. | H3: Experiment1 | I3: Experiment2 | J3: Experiment3 | K3: Average (%) | L3: S.D. | M3: Experiment1 | N3: Experiment2 | O3: Experiment3 | P3: Average (%) | Q3: S.D.
A4: 1 | B4: εM1 | C4: 42.5 | D4: 42.9 | E4: 41.3 | F4: =AVERAGE(C4:E4) -> 42 | G4: =STDEV(C4:E4) -> 0.8 | H4: 24.0 | I4: 23.6 | J4: 23.2 | K4: =AVERAGE(H4:J4) -> 24 | L4: =STDEV(H4:J4) -> 0.4 | M4: 36.09 | N4: 35.48 | O4: 35.95 | P4: =AVERAGE(M4:O4) -> 36 | Q4: =STDEV(M4:O4) -> 0.3 | R4: 3
A5: 2 | B5: εM2 | C5: 85.7 | D5: 83.8 | E5: 84.0 | F5: 85 | G5: =STDEV(C5:E5) -> 1.0 | H5: 96.2 | I5: 98.3 | J5: 99.2 | K5: =AVERAGE(H5:J5) -> 98 | L5: =STDEV(H5:J5) -> 1.5 | M5: 52.89 | N5: 54.00 | O5: 54.15 | P5: =AVERAGE(M5:O5) -> 54 | Q5: =STDEV(M5:O5) -> 0.7 | R5: 56
A6: 3 | B6: εM3 | C6: 93.3 | D6: 88.7 | E6: 89.2 | F6: 90 | G6: 2.5 | H6: 74.5 | I6: 78.9 | J6: 77.3 | K6: 77 | L6: 2.2 | M6: 44.42 | N6: 47.06 | O6: 46.43 | P6: 46 | Q6: 1.4 | R6: 44
A7: 4 | B7: εM4 | C7: 95.7 | D7: 96.0 | E7: 96.2 | F7: 96 | G7: 0.3 | H7: 67.7 | I7: 69.3 | J7: 69.9 | K7: 69 | L7: 1.1 | M7: 41.45 | N7: 41.91 | O7: 42.09 | P7: 42 | Q7: 0.3 | R7: 102
A8: 5 | B8: εM5 | C8: 95.0 | D8: 92.7 | E8: 93.0 | F8: 94 | G8: 1.3 | H8: 35.7 | I8: 34.6 | J8: 35.5 | K8: 35 | L8: 0.5 | M8: 27.30 | N8: 27.21 | O8: 27.61 | P8: 27 | Q8: 0.2 | R8: 46
A9: 6 | B9: εM6 | C9: 87.7 | D9: 86.8 | E9: 87.8 | F9: 87 | G9: 0.5 | H9: 93.6 | I9: 96.1 | J9: 96.1 | K9: 95 | L9: 1.4 | M9: 51.61 | N9: 52.53 | O9: 52.26 | P9: 52 | Q9: 0.5 | R9: 53
A10: 7 | B10: εM7 | C10: 91.7 | D10: 88.0 | E10: 89.7 | F10: 90 | G10: 1.8 | H10: 88.8 | I10: 92.6 | J10: 93.9 | K10: 92 | L10: 2.7 | M10: 49.20 | N10: 51.27 | O10: 51.14 | P10: 51 | Q10: 1.2 | R10: 62
A11: 8 | B11: εM8 | C11: 88.3 | D11: 87.3 | E11: 85.5 | F11: 87 | G11: 1.4 | H11: 95.8 | I11: 98.1 | J11: 98.8 | K11: 98 | L11: 1.6 | M11: 52.03 | N11: 52.92 | O11: 53.59 | P11: 53 | Q11: 0.8 | R11: 65

Sheet Supplementary Table 26
C2: ee (S）-3b (%) | H2: ee (R）-15a (%) | M2: conv. 15a (%) | R2: E
A3: entry | B3: HheC | C3: Experiment1 | D3: Experiment2 | E3: Experiment3 | F3: Average (%) | G3: S.D. | H3: Experiment1 | I3: Experiment2 | J3: Experiment3 | K3: Average (%) | L3: S.D. | M3: Experiment1 | N3: Experiment2 | O3: Experiment3 | P3: Average (%) | Q3: S.D.
A4: 1 | B4: εM1 | C4: 59.8 | D4: 60.8 | E4: 57.5 | F4: =AVERAGE(C4:E4) -> 59 | G4: =STDEV(C4:E4) -> 1.7 | H4: 9.5 | I4: 12.0 | J4: 11.4 | K4: =AVERAGE(H4:J4) -> 11 | L4: =STDEV(H4:J4) -> 1.3 | M4: 13.74 | N4: 16.43 | O4: 16.60 | P4: =AVERAGE(M4:O4) -> 16 | Q4: =STDEV(M4:O4) -> 1.6 | R4: 4
A5: 2 | B5: εM2 | C5: 76.4 | D5: 77.2 | E5: 75.3 | F5: 76 | G5: =STDEV(C5:E5) -> 0.9 | H5: 92.4 | I5: 94.5 | J5: 91.6 | K5: =AVERAGE(H5:J5) -> 93 | L5: =STDEV(H5:J5) -> 1.5 | M5: 54.72 | N5: 55.05 | O5: 54.88 | P5: =AVERAGE(M5:O5) -> 55 | Q5: =STDEV(M5:O5) -> 0.2 | R5: 24
A6: 3 | B6: εM3 | C6: 93.0 | D6: 91.6 | E6: 94.4 | F6: 93 | G6: 1.4 | H6: 36.9 | I6: 38.8 | J6: 36.7 | K6: 38 | L6: 1.1 | M6: 28.43 | N6: 29.73 | O6: 28.00 | P6: 29 | Q6: 0.9 | R6: 40
A7: 4 | B7: εM4 | C7: 77.7 | D7: 79.8 | E7: 80.3 | F7: 79 | G7: 1.4 | H7: 50.4 | I7: 56.1 | J7: 54.2 | K7: 54 | L7: 2.9 | M7: 39.33 | N7: 41.29 | O7: 40.28 | P7: 40 | Q7: 1.0 | R7: 15
A8: 5 | B8: εM5 | C8: 82.4 | D8: 82.4 | E8: 83.4 | F8: 83 | G8: 0.5 | H8: 21.2 | I8: 20.5 | J8: 20.6 | K8: 21 | L8: 0.4 | M8: 20.49 | N8: 19.89 | O8: 19.82 | P8: 20 | Q8: 0.4 | R8: 13
A9: 6 | B9: εM6 | C9: 70.8 | D9: 71.9 | E9: 72.5 | F9: 72 | G9: 0.9 | H9: 76.7 | I9: 77.5 | J9: 76.6 | K9: 77 | L9: 0.5 | M9: 51.99 | N9: 51.90 | O9: 51.36 | P9: 52 | Q9: 0.3 | R9: 14
A10: 7 | B10: εM7 | C10: 79.4 | D10: 80.8 | E10: 81.2 | F10: 80 | G10: 0.9 | H10: 73.9 | I10: 71.5 | J10: 72.6 | K10: 73 | L10: 1.2 | M10: 48.20 | N10: 46.96 | O10: 47.20 | P10: 48 | Q10: 0.7 | R10: 20
A11: 8 | B11: εM8 | C11: 76.4 | D11: 76.3 | E11: 76.5 | F11: 76 | G11: 0.1 | H11: 75.3 | I11: 75.7 | J11: 74.5 | K11: 75 | L11: 0.6 | M11: 49.63 | N11: 49.80 | O11: 49.33 | P11: 50 | Q11: 0.2 | R11: 16

Sheet Supplementary Table 27
C2: ee (S）-4b (%) | H2: ee (R）-16a (%) | M2: conv. 16a (%) | R2: E
A3: entry | B3: HheC | C3: Experiment1 | D3: Experiment2 | E3: Experiment3 | F3: Average (%) | G3: S.D. | H3: Experiment1 | I3: Experiment2 | J3: Experiment3 | K3: Average (%) | L3: S.D. | M3: Experiment1 | N3: Experiment2 | O3: Experiment3 | P3: Average (%) | Q3: S.D.
A4: 1 | B4: εM1 | C4: 73.6 | D4: 75.8 | E4: 76.6 | F4: =AVERAGE(C4:E4) -> 75 | G4: =STDEV(C4:E4) -> 1.5 | H4: 13.4 | I4: 13.4 | J4: 13.1 | K4: =AVERAGE(H4:J4) -> 13 | L4: =STDEV(H4:J4) -> 0.2 | M4: 15.36 | N4: 15.07 | O4: 14.62 | P4: =AVERAGE(M4:O4) -> 15 | Q4: =STDEV(M4:O4) -> 0.4 | R4: 8
A5: 2 | B5: εM2 | C5: 76.5 | D5: 77.0 | E5: 79.0 | F5: 78 | G5: =STDEV(C5:E5) -> 1.3 | H5: 71.8 | I5: 74.1 | J5: 73.3 | K5: =AVERAGE(H5:J5) -> 73 | L5: =STDEV(H5:J5) -> 1.1 | M5: 48.44 | N5: 49.04 | O5: 48.14 | P5: =AVERAGE(M5:O5) -> 49 | Q5: =STDEV(M5:O5) -> 0.5 | R5: 18
A6: 3 | B6: εM3 | C6: 88.0 | D6: 90.2 | E6: 89.2 | F6: 89 | G6: 1.1 | H6: 51.2 | I6: 48.6 | J6: 49.3 | K6: 50 | L6: 1.4 | M6: 36.78 | N6: 35.01 | O6: 35.58 | P6: 36 | Q6: 0.9 | R6: 28
A7: 4 | B7: εM4 | C7: 89.9 | D7: 92.7 | E7: 93.1 | F7: 92 | G7: 1.7 | H7: 28.5 | I7: 28.8 | J7: 22.7 | K7: 27 | L7: 3.5 | M7: 24.10 | N7: 23.72 | O7: 19.57 | P7: 23 | Q7: 2.5 | R7: 31
A8: 5 | B8: εM5 | C8: 92.5 | D8: 92.5 | E8: 90.1 | F8: 92 | G8: 1.3 | H8: 22.6 | I8: 24.3 | J8: 23.1 | K8: 23 | L8: 0.9 | M8: 19.64 | N8: 20.82 | O8: 20.38 | P8: 20 | Q8: 0.6 | R8: 30
A9: 6 | B9: εM6 | C9: 84.6 | D9: 84.0 | E9: 86.0 | F9: 85 | G9: 1.0 | H9: 67.6 | I9: 61.4 | J9: 67.3 | K9: 65 | L9: 3.5 | M9: 44.39 | N9: 42.23 | O9: 43.91 | P9: 44 | Q9: 1.1 | R9: 24
A10: 7 | B10: εM7 | C10: 84.3 | D10: 85.8 | E10: 85.0 | F10: 85 | G10: 0.7 | H10: 69.4 | I10: 67.9 | J10: 70.5 | K10: 69 | L10: 1.3 | M10: 45.14 | N10: 44.17 | O10: 45.35 | P10: 45 | Q10: 0.6 | R10: 25
A11: 8 | B11: εM8 | C11: 85.0 | D11: 85.8 | E11: 86.8 | F11: 86 | G11: 0.9 | H11: 58.4 | I11: 62.9 | J11: 63.5 | K11: 62 | L11: 2.8 | M11: 40.74 | N11: 42.33 | O11: 42.23 | P11: 42 | Q11: 0.9 | R11: 25

Sheet Supplementary Table 28
C2: ee (S）-5b (%) | H2: ee (R）-17a (%) | M2: conv. 17a (%) | R2: E
A3: entry | B3: HheC | C3: Experiment1 | D3: Experiment2 | E3: Experiment3 | F3: Average (%) | G3: S.D. | H3: Experiment1 | I3: Experiment2 | J3: Experiment3 | K3: Average (%) | L3: S.D. | M3: Experiment1 | N3: Experiment2 | O3: Experiment3 | P3: Average (%) | Q3: S.D.
A4: 1 | B4: εM1 | C4: 76.1 | D4: 73.8 | E4: 74.9 | F4: =AVERAGE(C4:E4) -> 75 | G4: =STDEV(C4:E4) -> 1.1 | H4: 25.8 | I4: 31.5 | J4: 31.0 | K4: =AVERAGE(H4:J4) -> 29 | L4: =STDEV(H4:J4) -> 3.1 | M4: 25.34 | N4: 29.87 | O4: 29.31 | P4: =AVERAGE(M4:O4) -> 28 | Q4: =STDEV(M4:O4) -> 2.5 | R4: 9
A5: 2 | B5: εM2 | C5: 66.5 | D5: 70.3 | E5: 71.0 | F5: 69 | G5: =STDEV(C5:E5) -> 2.4 | H5: 84.2 | I5: 88.5 | J5: 89.2 | K5: =AVERAGE(H5:J5) -> 87 | L5: =STDEV(H5:J5) -> 2.7 | M5: 55.88 | N5: 55.76 | O5: 55.70 | P5: =AVERAGE(M5:O5) -> 56 | Q5: =STDEV(M5:O5) -> 0.1 | R5: 15
A6: 3 | B6: εM3 | C6: 90.3 | D6: 90.3 | E6: 90.1 | F6: 90 | G6: 0.1 | H6: 71.1 | I6: 78.2 | J6: 76.1 | K6: 75 | L6: 3.6 | M6: 44.07 | N6: 46.42 | O6: 45.76 | P6: 45 | Q6: 1.2 | R6: 43
A7: 4 | B7: εM4 | C7: 83.3 | D7: 82.3 | E7: 81.7 | F7: 82 | G7: 0.8 | H7: 30.0 | I7: 23.3 | J7: 22.3 | K7: 25 | L7: 4.2 | M7: 26.46 | N7: 22.07 | O7: 21.46 | P7: 23 | Q7: 2.7 | R7: 13
A8: 5 | B8: εM5 | C8: 91.9 | D8: 93.0 | E8: 93.2 | F8: 93 | G8: 0.7 | H8: 28.2 | I8: 22.6 | J8: 22.9 | K8: 25 | L8: 3.2 | M8: 23.49 | N8: 19.57 | O8: 19.69 | P8: 21 | Q8: 2.2 | R8: 35
A9: 6 | B9: εM6 | C9: 82.9 | D9: 80.5 | E9: 81.3 | F9: 82 | G9: 1.2 | H9: 89.1 | I9: 91.3 | J9: 93.2 | K9: 91 | L9: 2.1 | M9: 51.80 | N9: 53.13 | O9: 53.42 | P9: 53 | Q9: 0.9 | R9: 32
A10: 7 | B10: εM7 | C10: 87.4 | D10: 88.0 | E10: 87.3 | F10: 88 | G10: 0.4 | H10: 80.9 | I10: 77.0 | J10: 77.6 | K10: 79 | L10: 2.1 | M10: 48.07 | N10: 46.66 | O10: 47.05 | P10: 47 | Q10: 0.7 | R10: 38
A11: 8 | B11: εM8 | C11: 84.3 | D11: 86.5 | E11: 82.5 | F11: 85 | G11: 2.0 | H11: 78.1 | I11: 73.1 | J11: 72.0 | K11: 74 | L11: 3.3 | M11: 48.10 | N11: 45.79 | O11: 46.58 | P11: 47 | Q11: 1.2 | R11: 27

Sheet Supplementary Table 29
C2: ee (S）-18b (%) | H2: ee (R）-18a (%) | M2: conv. 18a (%) | R2: E
A3: entry | B3: HheC | C3: Experiment1 | D3: Experiment2 | E3: Experiment3 | F3: Average (%) | G3: S.D. | H3: Experiment1 | I3: Experiment2 | J3: Experiment3 | K3: Average (%) | L3: S.D. | M3: Experiment1 | N3: Experiment2 | O3: Experiment3 | P3: Average (%) | Q3: S.D.
A4: 1 | B4: εM1 | C4: 48.0 | D4: 46.7 | E4: 49.0 | F4: =AVERAGE(C4:E4) -> 48 | G4: =STDEV(C4:E4) -> 1.2 | H4: 49.0 | I4: 49.7 | J4: 47.7 | K4: =AVERAGE(H4:J4) -> 49 | L4: =STDEV(H4:J4) -> 1.0 | M4: 50.53 | N4: 51.57 | O4: 49.29 | P4: 51 | Q4: =STDEV(M4:O4) -> 1.1 | R4: 5
A5: 2 | B5: εM2 | C5: 84.0 | D5: 84.5 | E5: 85.3 | F5: 85 | G5: =STDEV(C5:E5) -> 0.7 | H5: 98.4 | I5: 96.8 | J5: 96.4 | K5: =AVERAGE(H5:J5) -> 97 | L5: =STDEV(H5:J5) -> 1.1 | M5: 53.96 | N5: 53.39 | O5: 53.03 | P5: 54 | Q5: =STDEV(M5:O5) -> 0.5 | R5: 51
A6: 3 | B6: εM3 | C6: 95.4 | D6: 94.9 | E6: 93.7 | F6: 95 | G6: 0.9 | H6: 76.1 | I6: 76.4 | J6: 74.3 | K6: 76 | L6: 1.1 | M6: 44.37 | N6: 44.58 | O6: 44.21 | P6: =AVERAGE(M6:O6) -> 44 | Q6: 0.2 | R6: 90
A7: 4 | B7: εM4 | C7: 92.8 | D7: 92.6 | E7: 95.0 | F7: 94 | G7: 1.3 | H7: 76.2 | I7: 71.2 | J7: 72.8 | K7: 73 | L7: 2.5 | M7: 45.08 | N7: 43.46 | O7: 43.39 | P7: 44 | Q7: 1.0 | R7: 71
A8: 5 | B8: εM5 | C8: 96.3 | D8: 97.4 | E8: 97.0 | F8: 97 | G8: 0.5 | H8: 34.9 | I8: 31.9 | J8: 31.2 | K8: 33 | L8: 2.0 | M8: 26.62 | N8: 24.67 | O8: 24.33 | P8: 25 | Q8: 1.2 | R8: 91
A9: 6 | B9: εM6 | C9: 93.9 | D9: 94.1 | E9: 93.9 | F9: 94 | G9: 0.1 | H9: 89.5 | I9: 87.9 | J9: 87.6 | K9: 88 | L9: 1.0 | M9: 48.79 | N9: 48.29 | O9: 48.28 | P9: 49 | Q9: 0.3 | R9: 94
A10: 7 | B10: εM7 | C10: 93.3 | D10: 94.0 | E10: 93.5 | F10: 94 | G10: 0.3 | H10: 90.4 | I10: 89.4 | J10: 89.2 | K10: 90 | L10: 0.6 | M10: 49.19 | N10: 48.75 | O10: 48.84 | P10: 49 | Q10: 0.2 | R10: 100
A11: 8 | B11: εM8 | C11: 93.5 | D11: 92.9 | E11: 93.1 | F11: 93 | G11: 0.3 | H11: 93.8 | I11: 94.3 | J11: 94.8 | K11: 94 | L11: 0.5 | M11: 50.10 | N11: 50.36 | O11: 50.45 | P11: 50 | Q11: 0.2 | R11: 98

Sheet Supplementary Table 30
C2: ee (S）-6b (%) | H2: ee (R）-19a (%) | M2: conv. 19a (%) | R2: E
A3: entry | B3: HheC | C3: Experiment1 | D3: Experiment2 | E3: Experiment3 | F3: Average (%) | G3: S.D. | H3: Experiment1 | I3: Experiment2 | J3: Experiment3 | K3: Average (%) | L3: S.D. | M3: Experiment1 | N3: Experiment2 | O3: Experiment3 | P3: Average (%) | Q3: S.D.
A4: 1 | B4: εM1 | C4: 21.4 | D4: 21.5 | E4: 21.9 | F4: =AVERAGE(C4:E4) -> 22 | G4: =STDEV(C4:E4) -> 0.2 | H4: 49.8 | I4: 49.6 | J4: 51.5 | K4: =AVERAGE(H4:J4) -> 50 | L4: =STDEV(H4:J4) -> 1.0 | M4: 69.92 | N4: 69.73 | O4: 70.16 | P4: =AVERAGE(M4:O4) -> 70 | Q4: =STDEV(M4:O4) -> 0.2 | R4: 2
A5: 2 | B5: εM2 | C5: 49.3 | D5: 50.1 | E5: 50.3 | F5: 50 | G5: =STDEV(C5:E5) -> 0.5 | H5: 91.3 | I5: 94.4 | J5: 94.6 | K5: =AVERAGE(H5:J5) -> 93 | L5: =STDEV(H5:J5) -> 1.9 | M5: 64.91 | N5: 65.32 | O5: 65.28 | P5: =AVERAGE(M5:O5) -> 65 | Q5: =STDEV(M5:O5) -> 0.2 | R5: 9
A6: 3 | B6: εM3 | C6: 87.2 | D6: 87.3 | E6: 87.1 | F6: 87 | G6: 0.1 | H6: 83.5 | I6: 86.4 | J6: 88.9 | K6: 86 | L6: 2.7 | M6: 48.94 | N6: 49.75 | O6: 50.52 | P6: 50 | Q6: 0.8 | R6: 40
A7: 4 | B7: εM4 | C7: 90.9 | D7: 91.7 | E7: 91.6 | F7: 91 | G7: 0.4 | H7: 53.7 | I7: 55.8 | J7: 54.7 | K7: 55 | L7: 1.0 | M7: 37.14 | N7: 37.81 | O7: 37.41 | P7: 38 | Q7: 0.3 | R7: 37
A8: 5 | B8: εM5 | C8: 92.8 | D8: 88.3 | E8: 88.5 | F8: 90 | G8: 2.5 | H8: 19.3 | I8: 19.8 | J8: 20.1 | K8: 20 | L8: 0.4 | M8: 17.19 | N8: 18.31 | O8: 18.48 | P8: 18 | Q8: 0.7 | R8: 23
A9: 6 | B9: εM6 | C9: 86.0 | D9: 86.9 | E9: 86.8 | F9: 87 | G9: 0.5 | H9: 80.6 | I9: 83.2 | J9: 82.9 | K9: 82 | L9: 1.4 | M9: 48.38 | N9: 48.91 | O9: 48.84 | P9: 49 | Q9: 0.3 | R9: 37
A10: 7 | B10: εM7 | C10: 87.3 | D10: 89.3 | E10: 89.3 | F10: 89 | G10: 1.2 | H10: 67.4 | I10: 69.1 | J10: 68.5 | K10: 68 | L10: 0.8 | M10: 43.59 | N10: 43.62 | O10: 43.41 | P10: 44 | Q10: 0.1 | R10: 35
A11: 8 | B11: εM8 | C11: 86.4 | D11: 87.1 | E11: 86.9 | F11: 87 | G11: 0.4 | H11: 79.2 | I11: 81.5 | J11: 81.5 | K11: 81 | L11: 1.3 | M11: 47.81 | N11: 48.32 | O11: 48.39 | P11: 48 | Q11: 0.3 | R11: 36

Sheet Supplementary Table 31
C2: ee (S）-7b (%) | H2: ee (R）-20a (%) | M2: conv. 20a (%) | R2: E
A3: entry | B3: HheC | C3: Experiment1 | D3: Experiment2 | E3: Experiment3 | F3: Average (%) | G3: S.D. | H3: Experiment1 | I3: Experiment2 | J3: Experiment3 | K3: Average (%) | L3: S.D. | M3: Experiment1 | N3: Experiment2 | O3: Experiment3 | P3: Average (%) | Q3: S.D.
A4: 1 | B4: εM1 | C4: 24.8 | D4: 24.5 | E4: 25.0 | F4: =AVERAGE(C4:E4) -> 25 | G4: =STDEV(C4:E4) -> 0.2 | H4: 11.8 | I4: 10.8 | J4: 9.2 | K4: =AVERAGE(H4:J4) -> 11 | L4: =STDEV(H4:J4) -> 1.3 | M4: 32.33 | N4: 30.53 | O4: 26.90 | P4: =AVERAGE(M4:O4) -> 30 | Q4: =STDEV(M4:O4) -> 2.8 | R4: 2
A5: 2 | B5: εM2 | C5: 71.8 | D5: 71.6 | E5: 72.0 | F5: 72 | G5: =STDEV(C5:E5) -> 0.2 | H5: 100.0 | I5: 100.0 | J5: 100.0 | K5: ＞99 | L5: =STDEV(H5:J5) -> 0.0 | M5: 58.21 | N5: 58.26 | O5: 58.15 | P5: =AVERAGE(M5:O5) -> 58 | Q5: =STDEV(M5:O5) -> 0.1 | R5: 31
A6: 3 | B6: εM3 | C6: 93.2 | D6: 92.6 | E6: 92.8 | F6: 93 | G6: 0.3 | H6: 15.6 | I6: 11.9 | J6: 14.6 | K6: =AVERAGE(H6:J6) -> 14 | L6: 1.9 | M6: 14.34 | N6: 11.41 | O6: 13.56 | P6: 13 | Q6: 1.5 | R6: 32
A7: 4 | B7: εM4 | C7: 92.5 | D7: 92.5 | E7: 91.3 | F7: 92 | G7: 0.7 | H7: 75.4 | I7: 80.6 | J7: 75.4 | K7: 77 | L7: 3.0 | M7: 44.92 | N7: 46.57 | O7: 45.25 | P7: 46 | Q7: 0.9 | R7: 56
A8: 5 | B8: εM5 | C8: 88.9 | D8: 86.7 | E8: 87.8 | F8: 88 | G8: 1.1 | H8: 6.3 | I8: 5.9 | J8: 6.9 | K8: 6 | L8: 0.5 | M8: 6.58 | N8: 6.35 | O8: 7.31 | P8: 7 | Q8: 0.5 | R8: 17
A9: 6 | B9: εM6 | C9: 90.1 | D9: 89.5 | E9: 89.8 | F9: 90 | G9: 0.3 | H9: 95.1 | I9: 95.0 | J9: 95.2 | K9: 95 | L9: 0.1 | M9: 51.36 | N9: 51.51 | O9: 51.44 | P9: 51 | Q9: 0.1 | R9: 71
A10: 7 | B10: εM7 | C10: 91.5 | D10: 90.6 | E10: 91.4 | F10: 91 | G10: 0.5 | H10: 77.8 | I10: 76.7 | J10: 77.3 | K10: 77 | L10: 0.6 | M10: 45.97 | N10: 45.84 | O10: 45.84 | P10: 46 | Q10: 0.1 | R10: 49
A11: 8 | B11: εM8 | C11: 92.3 | D11: 91.9 | E11: 92.0 | F11: 92 | G11: 0.2 | H11: 61.7 | I11: 49.9 | J11: 56.9 | K11: 56 | L11: 6.0 | M11: 40.09 | N11: 35.20 | O11: 38.20 | P11: 38 | Q11: 2.5 | R11: 42

Sheet Supplementary Table 32
C2: ee (S）-8b (%) | H2: ee (R）-21a (%) | M2: conv. 21a (%) | R2: E
A3: entry | B3: HheC | C3: Experiment1 | D3: Experiment2 | E3: Experiment3 | F3: Average (%) | G3: S.D. | H3: Experiment1 | I3: Experiment2 | J3: Experiment3 | K3: Average (%) | L3: S.D. | M3: Experiment1 | N3: Experiment2 | O3: Experiment3 | P3: Average (%) | Q3: S.D.
A4: 1 | B4: εM1 | C4: 6.3 | D4: 6.2 | E4: 6.4 | F4: =AVERAGE(C4:E4) -> 6 | G4: =STDEV(C4:E4) -> 0.1 | H4: 5.8 | I4: 7.0 | J4: 6.4 | K4: =AVERAGE(H4:J4) -> 6 | L4: =STDEV(H4:J4) -> 0.6 | M4: 47.94 | N4: 53.13 | O4: 49.97 | P4: =AVERAGE(M4:O4) -> 50 | Q4: =STDEV(M4:O4) -> 2.6 | R4: 1
A5: 2 | B5: εM2 | C5: 49.8 | D5: 50.3 | E5: 49.0 | F5: =AVERAGE(C5:E5) -> 50 | G5: =STDEV(C5:E5) -> 0.7 | H5: 56.2 | I5: 55.1 | J5: 56.2 | K5: =AVERAGE(H5:J5) -> 56 | L5: =STDEV(H5:J5) -> 0.6 | M5: 53.00 | N5: 52.26 | O5: 53.43 | P5: =AVERAGE(M5:O5) -> 53 | Q5: =STDEV(M5:O5) -> 0.6 | R5: 5
A6: 3 | B6: εM3 | C6: 63.2 | D6: 63.8 | E6: 63.4 | F6: 64 | G6: 0.3 | H6: 20.7 | I6: 22.5 | J6: 20.5 | K6: 21 | L6: 1.1 | M6: 24.66 | N6: 26.12 | O6: 24.41 | P6: 25 | Q6: 0.9 | R6: 6
A7: 4 | B7: εM4 | C7: 72.6 | D7: 73.2 | E7: 71.6 | F7: 73 | G7: 0.8 | H7: 16.9 | I7: 17.3 | J7: 16.1 | K7: 17 | L7: 0.6 | M7: 18.91 | N7: 19.15 | O7: 18.36 | P7: 19 | Q7: 0.4 | R7: 8
A8: 5 | B8: εM5 | C8: 66.8 | D8: 67.5 | E8: 65.3 | F8: 67 | G8: 1.1 | H8: 4.2 | I8: 3.1 | J8: 3.7 | K8: 4 | L8: 0.5 | M8: 5.85 | N8: 4.43 | O8: 5.36 | P8: 5 | Q8: 0.7 | R8: 5
A9: 6 | B9: εM6 | C9: 60.5 | D9: 59.6 | E9: 59.3 | F9: 60 | G9: 0.6 | H9: 36.5 | I9: 38.9 | J9: 37.9 | K9: 38 | L9: 1.2 | M9: 37.64 | N9: 39.49 | O9: 39.01 | P9: 39 | Q9: 1.0 | R9: 6
A10: 7 | B10: εM7 | C10: 62.0 | D10: 60.5 | E10: 59.6 | F10: 61 | G10: 1.2 | H10: 56.9 | I10: 58.8 | J10: 59.2 | K10: 58 | L10: 1.2 | M10: 47.83 | N10: 49.30 | O10: 49.82 | P10: 49 | Q10: 1.0 | R10: 7
A11: 8 | B11: εM8 | C11: 60.1 | D11: 60.4 | E11: 59.6 | F11: 60 | G11: 0.4 | H11: 46.4 | I11: 46.1 | J11: 45.8 | K11: 46 | L11: 0.3 | M11: 43.55 | N11: 43.30 | O11: 43.44 | P11: 43 | Q11: 0.1 | R11: 6

Sheet Supplementary Table 33
C2: ee (S）-22b (%) | H2: ee (R）-22a (%) | M2: conv. 22a (%) | R2: E
A3: entry | B3: HheC | C3: Experiment1 | D3: Experiment2 | E3: Experiment3 | F3: Average (%) | G3: S.D. | H3: Experiment1 | I3: Experiment2 | J3: Experiment3 | K3: Average (%) | L3: S.D. | M3: Experiment1 | N3: Experiment2 | O3: Experiment3 | P3: Average (%) | Q3: S.D.
A4: 1 | B4: εM1 | C4: 9.3 | D4: 10.0 | E4: 9.6 | F4: =AVERAGE(C4:E4) -> 10 | G4: =STDEV(C4:E4) -> 0.4 | H4: 86.7 | I4: 84.6 | J4: 86.7 | K4: =AVERAGE(H4:J4) -> 86 | L4: =STDEV(H4:J4) -> 1.2 | M4: 90.32 | N4: 89.38 | O4: 90.06 | P4: =AVERAGE(M4:O4) -> 90 | Q4: =STDEV(M4:O4) -> 0.5 | R4: 3
A5: 2 | B5: εM2 | C5: 58.1 | D5: 56.9 | E5: 57.3 | F5: 57 | G5: =STDEV(C5:E5) -> 0.6 | H5: 64.0 | I5: 65.3 | J5: 65.7 | K5: =AVERAGE(H5:J5) -> 65 | L5: =STDEV(H5:J5) -> 0.9 | M5: 52.42 | N5: 53.42 | O5: 53.41 | P5: =AVERAGE(M5:O5) -> 53 | Q5: =STDEV(M5:O5) -> 0.6 | R5: 7
A6: 3 | B6: εM3 | C6: 61.0 | D6: 61.3 | E6: 60.8 | F6: 61 | G6: 0.2 | H6: 81.4 | I6: 80.9 | J6: 81.5 | K6: 81 | L6: 0.3 | M6: 57.15 | N6: 56.92 | O6: 57.29 | P6: 57 | Q6: 0.2 | R6: 10
A7: 4 | B7: εM4 | C7: 64.0 | D7: 63.7 | E7: 63.2 | F7: 64 | G7: 0.4 | H7: 15.6 | I7: 15.9 | J7: 15.3 | K7: 16 | L7: 0.3 | M7: 19.62 | N7: 20.02 | O7: 19.46 | P7: 20 | Q7: 0.3 | R7: 5
A8: 5 | B8: εM5 | C8: 79.6 | D8: 78.6 | E8: 78.6 | F8: 79 | G8: 0.6 | H8: 25.1 | I8: 25.7 | J8: 25.5 | K8: 25 | L8: 0.3 | M8: 23.94 | N8: 24.61 | O8: 24.51 | P8: 24 | Q8: 0.4 | R8: 11
A9: 6 | B9: εM6 | C9: 63.8 | D9: 63.5 | E9: 63.5 | F9: 64 | G9: 0.2 | H9: 91.0 | I9: 91.7 | J9: 90.9 | K9: 91 | L9: 0.4 | M9: 58.80 | N9: 59.09 | O9: 58.88 | P9: 59 | Q9: 0.1 | R9: 14
A10: 7 | B10: εM7 | C10: 52.2 | D10: 52.2 | E10: 51.5 | F10: 52 | G10: 0.4 | H10: 44.5 | I10: 43.7 | J10: 44.3 | K10: 44 | L10: 0.4 | M10: 46.02 | N10: 45.60 | O10: 46.24 | P10: 46 | Q10: 0.3 | R10: 5
A11: 8 | B11: εM8 | C11: 69.3 | D11: 68.4 | E11: 68.9 | F11: 69 | G11: 0.4 | H11: 27.8 | I11: 29.3 | J11: 29.4 | K11: 29 | L11: 0.9 | M11: 28.63 | N11: 29.98 | O11: 29.93 | P11: 30 | Q11: 0.8 | R11: 7

Sheet Supplementary Fig.1
A2: Time (ns) | B2: RMSD (Å)
A3: 1 | B3: 0
A4: 2 | B4: 0.8933
A5: 3 | B5: 1.0324
A6: 4 | B6: 1.0642
A7: 5 | B7: 1.0943
A8: 6 | B8: 1.0325
A9: 7 | B9: 1.1579
A10: 8 | B10: 1.2901
A11: 9 | B11: 1.2533
A12: 10 | B12: 1.2362
A13: 11 | B13: 1.2176
A14: 12 | B14: 1.2226
A15: 13 | B15: 1.3645
A16: 14 | B16: 1.3563
A17: 15 | B17: 1.3397
A18: 16 | B18: 1.3262
A19: 17 | B19: 1.3959
A20: 18 | B20: 1.2887
A21: 19 | B21: 1.3084
A22: 20 | B22: 1.1963
A23: 21 | B23: 1.3092
A24: 22 | B24: 1.2689
A25: 23 | B25: 1.3334
A26: 24 | B26: 1.3673
A27: 25 | B27: 1.6112
A28: 26 | B28: 1.5587
A29: 27 | B29: 1.8074
A30: 28 | B30: 1.5686
A31: 29 | B31: 1.7044
A32: 30 | B32: 1.6721
A33: 31 | B33: 1.5764
A34: 32 | B34: 1.586
A35: 33 | B35: 1.548
A36: 34 | B36: 1.5539
A37: 35 | B37: 1.594
A38: 36 | B38: 1.6301
A39: 37 | B39: 1.6401
A40: 38 | B40: 1.607
A41: 39 | B41: 1.5352
A42: 40 | B42: 1.5578
A43: 41 | B43: 1.5703
A44: 42 | B44: 1.6885
A45: 43 | B45: 1.6232
A46: 44 | B46: 1.5691
A47: 45 | B47: 1.5393
A48: 46 | B48: 1.7081
A49: 47 | B49: 1.821
A50: 48 | B50: 1.7589
A51: 49 | B51: 1.7544
A52: 50 | B52: 1.761
A53: 51 | B53: 1.7499
A54: 52 | B54: 1.7971
A55: 53 | B55: 1.8031
A56: 54 | B56: 1.7696
A57: 55 | B57: 1.6826
A58: 56 | B58: 1.6106
A59: 57 | B59: 1.6792
A60: 58 | B60: 1.8405
A61: 59 | B61: 1.7037
A62: 60 | B62: 1.6194
A63: 61 | B63: 1.5865
A64: 62 | B64: 1.6569
A65: 63 | B65: 1.5824
A66: 64 | B66: 1.5648
A67: 65 | B67: 1.5211
A68: 66 | B68: 1.4999
A69: 67 | B69: 1.428
A70: 68 | B70: 1.4667
A71: 69 | B71: 1.4574
A72: 70 | B72: 1.5124
A73: 71 | B73: 1.4502
A74: 72 | B74: 1.4399
A75: 73 | B75: 1.4313
A76: 74 | B76: 1.5457
A77: 75 | B77: 1.5683
A78: 76 | B78: 1.7521
A79: 77 | B79: 1.6998
A80: 78 | B80: 1.6912
A81: 79 | B81: 1.6985
A82: 80 | B82: 1.6688
A83: 81 | B83: 1.5989
A84: 82 | B84: 1.5323
A85: 83 | B85: 1.622
A86: 84 | B86: 1.5709
A87: 85 | B87: 1.7188
A88: 86 | B88: 1.7574
A89: 87 | B89: 1.8245
A90: 88 | B90: 1.8666
A91: 89 | B91: 1.7626
A92: 90 | B92: 1.7299
A93: 91 | B93: 1.7366
A94: 92 | B94: 1.8012
A95: 93 | B95: 1.778
A96: 94 | B96: 1.7816
A97: 95 | B97: 1.9466
A98: 96 | B98: 1.9103
A99: 97 | B99: 1.861
A100: 98 | B100: 2.0119
A101: 99 | B101: 2.0103
A102: 100 | B102: 2.0093
A103: 101 | B103: 1.8791
A104: 102 | B104: 1.954
A105: 103 | B105: 1.9857
A106: 104 | B106: 2.046
A107: 105 | B107: 2.1002
A108: 106 | B108: 1.9813
A109: 107 | B109: 1.9022
A110: 108 | B110: 1.7886
A111: 109 | B111: 1.9263
A112: 110 | B112: 1.7999
A113: 111 | B113: 1.908
A114: 112 | B114: 2.002
A115: 113 | B115: 2.0317
A116: 114 | B116: 2.014
A117: 115 | B117: 2.1224
A118: 116 | B118: 1.9486
A119: 117 | B119: 1.9441
A120: 118 | B120: 1.8294
A121: 119 | B121: 1.9043
A122: 120 | B122: 1.7759
A123: 121 | B123: 1.8893
A124: 122 | B124: 2.0361
A125: 123 | B125: 2.0923
A126: 124 | B126: 2.1049
A127: 125 | B127: 1.9608
A128: 126 | B128: 1.8502
A129: 127 | B129: 1.7366
A130: 128 | B130: 1.9126
A131: 129 | B131: 1.9369
A132: 130 | B132: 1.9745
A133: 131 | B133: 2.1054
A134: 132 | B134: 2.1346
A135: 133 | B135: 2.1325
A136: 134 | B136: 1.8684
A137: 135 | B137: 1.7702
A138: 136 | B138: 1.8209
A139: 137 | B139: 1.8429
A140: 138 | B140: 1.7057
A141: 139 | B141: 1.8321
A142: 140 | B142: 1.9784
A143: 141 | B143: 1.9022
A144: 142 | B144: 1.9857
A145: 143 | B145: 2.0186
A146: 144 | B146: 1.833
A147: 145 | B147: 1.8759
A148: 146 | B148: 1.9215
A149: 147 | B149: 1.7639
A150: 148 | B150: 1.8073
A151: 149 | B151: 1.9899
A152: 150 | B152: 1.9956
A153: 151 | B153: 2.098
A154: 152 | B154: 2.0021
A155: 153 | B155: 1.8211
A156: 154 | B156: 1.7678
A157: 155 | B157: 1.8292
A158: 156 | B158: 1.7581
A159: 157 | B159: 1.8386
A160: 158 | B160: 1.869
A161: 159 | B161: 1.8046
A162: 160 | B162: 1.7809
A163: 161 | B163: 1.7448
A164: 162 | B164: 1.6975
A165: 163 | B165: 1.7255
A166: 164 | B166: 1.6274
A167: 165 | B167: 1.7065
A168: 166 | B168: 1.6332
A169: 167 | B169: 1.5744
A170: 168 | B170: 1.5652
A171: 169 | B171: 1.6602
A172: 170 | B172: 1.7384
A173: 171 | B173: 1.7336
A174: 172 | B174: 1.5768
A175: 173 | B175: 1.5691
A176: 174 | B176: 1.6246
A177: 175 | B177: 1.7567
A178: 176 | B178: 1.8035
A179: 177 | B179: 1.7975
A180: 178 | B180: 1.951
A181: 179 | B181: 2.0057
A182: 180 | B182: 1.9621
A183: 181 | B183: 1.9454
A184: 182 | B184: 1.8357
A185: 183 | B185: 1.846
A186: 184 | B186: 1.8807
A187: 185 | B187: 1.8024
A188: 186 | B188: 1.8948
A189: 187 | B189: 1.8609
A190: 188 | B190: 1.8717
A191: 189 | B191: 1.8256
A192: 190 | B192: 1.9144
A193: 191 | B193: 1.9913
A194: 192 | B194: 2.0507
A195: 193 | B195: 1.9707
A196: 194 | B196: 1.9453
A197: 195 | B197: 2.0232
A198: 196 | B198: 2.2692
A199: 197 | B199: 1.9777
A200: 198 | B200: 2.1201
A201: 199 | B201: 2.0468
... 4299 more rows

Sheet Supplementary Fig. 2a
A2: Time (ns) | B2: Distance (Å)
A3: 1 | B3: 3.7895
A4: 2 | B4: 4.563
A5: 3 | B5: 3.6354
A6: 4 | B6: 3.935
A7: 5 | B7: 3.7492
A8: 6 | B8: 3.9674
A9: 7 | B9: 3.6399
A10: 8 | B10: 4.1665
A11: 9 | B11: 3.3198
A12: 10 | B12: 4.4411
A13: 11 | B13: 3.9369
A14: 12 | B14: 3.551
A15: 13 | B15: 4.718
A16: 14 | B16: 4.3519
A17: 15 | B17: 5.0618
A18: 16 | B18: 4.4163
A19: 17 | B19: 3.6395
A20: 18 | B20: 4.7968
A21: 19 | B21: 4.267
A22: 20 | B22: 3.528
A23: 21 | B23: 4.4996
A24: 22 | B24: 4.1633
A25: 23 | B25: 4.2227
A26: 24 | B26: 4.3519
A27: 25 | B27: 4.7901
A28: 26 | B28: 3.6085
A29: 27 | B29: 3.7239
A30: 28 | B30: 3.0505
A31: 29 | B31: 4.7068
A32: 30 | B32: 3.7585
A33: 31 | B33: 3.6628
A34: 32 | B34: 4.862
A35: 33 | B35: 3.6264
A36: 34 | B36: 5.8111
A37: 35 | B37: 4.2683
A38: 36 | B38: 4.4228
A39: 37 | B39: 4.1254
A40: 38 | B40: 3.4293
A41: 39 | B41: 4.2014
A42: 40 | B42: 5.1219
A43: 41 | B43: 5.3642
A44: 42 | B44: 4.6243
A45: 43 | B45: 4.86
A46: 44 | B46: 4.9666
A47: 45 | B47: 4.7869
A48: 46 | B48: 5.8045
A49: 47 | B49: 5.5299
A50: 48 | B50: 6.2448
A51: 49 | B51: 4.5124
A52: 50 | B52: 4.6905
A53: 51 | B53: 4.7816
A54: 52 | B54: 4.2229
A55: 53 | B55: 4.4364
A56: 54 | B56: 5.0298
A57: 55 | B57: 5.1748
A58: 56 | B58: 5.1579
A59: 57 | B59: 5.4175
A60: 58 | B60: 4.3563
A61: 59 | B61: 4.4967
A62: 60 | B62: 4.6624
A63: 61 | B63: 3.552
A64: 62 | B64: 4.0556
A65: 63 | B65: 4.6908
A66: 64 | B66: 5.52
A67: 65 | B67: 4.2332
A68: 66 | B68: 4.2618
A69: 67 | B69: 4.5323
A70: 68 | B70: 4.178
A71: 69 | B71: 4.6338
A72: 70 | B72: 4.7178
A73: 71 | B73: 4.3447
A74: 72 | B74: 3.5765
A75: 73 | B75: 4.0377
A76: 74 | B76: 4.0748
A77: 75 | B77: 3.6892
A78: 76 | B78: 4.6644
A79: 77 | B79: 4.8505
A80: 78 | B80: 3.9252
A81: 79 | B81: 4.5631
A82: 80 | B82: 5.279
A83: 81 | B83: 4.5949
A84: 82 | B84: 3.8041
A85: 83 | B85: 4.9116
A86: 84 | B86: 4.7895
A87: 85 | B87: 4.325
A88: 86 | B88: 4.1766
A89: 87 | B89: 4.2039
A90: 88 | B90: 4.8173
A91: 89 | B91: 4.1241
A92: 90 | B92: 3.2891
A93: 91 | B93: 4.7233
A94: 92 | B94: 4.5062
A95: 93 | B95: 4.3151
A96: 94 | B96: 3.8935
A97: 95 | B97: 4.4228
A98: 96 | B98: 5.0462
A99: 97 | B99: 4.7901
A100: 98 | B100: 5.0435
A101: 99 | B101: 5.1422
A102: 100 | B102: 4.9571
A103: 101 | B103: 5.6263
A104: 102 | B104: 5.3253
A105: 103 | B105: 4.3269
A106: 104 | B106: 4.761
A107: 105 | B107: 4.5819
A108: 106 | B108: 4.5866
A109: 107 | B109: 4.7014
A110: 108 | B110: 5.3705
A111: 109 | B111: 4.5907
A112: 110 | B112: 4.421
A113: 111 | B113: 4.3949
A114: 112 | B114: 3.5474
A115: 113 | B115: 4.2035
A116: 114 | B116: 4.2781
A117: 115 | B117: 4.3331
A118: 116 | B118: 4.4145
A119: 117 | B119: 4.4494
A120: 118 | B120: 5.4129
A121: 119 | B121: 4.6156
A122: 120 | B122: 5.0608
A123: 121 | B123: 3.9034
A124: 122 | B124: 4.505
A125: 123 | B125: 4.352
A126: 124 | B126: 5.2067
A127: 125 | B127: 4.761
A128: 126 | B128: 4.1957
A129: 127 | B129: 4.8511
A130: 128 | B130: 4.4747
A131: 129 | B131: 4.5164
A132: 130 | B132: 5.2
A133: 131 | B133: 4.9256
A134: 132 | B134: 4.1514
A135: 133 | B135: 3.5353
A136: 134 | B136: 4.0868
A137: 135 | B137: 3.9193
A138: 136 | B138: 4.0674
A139: 137 | B139: 4.116
A140: 138 | B140: 4.4792
A141: 139 | B141: 4.2086
A142: 140 | B142: 4.3792
A143: 141 | B143: 3.8117
A144: 142 | B144: 4.8488
A145: 143 | B145: 3.4421
A146: 144 | B146: 4.5606
A147: 145 | B147: 4.5977
A148: 146 | B148: 3.7254
A149: 147 | B149: 3.7213
A150: 148 | B150: 3.7995
A151: 149 | B151: 4.0958
A152: 150 | B152: 5.0593
A153: 151 | B153: 4.0272
A154: 152 | B154: 4.8403
A155: 153 | B155: 4.3893
A156: 154 | B156: 4.0021
A157: 155 | B157: 5.0199
A158: 156 | B158: 4.7522
A159: 157 | B159: 3.9588
A160: 158 | B160: 4.3586
A161: 159 | B161: 4.1078
A162: 160 | B162: 4.7377
A163: 161 | B163: 4.5936
A164: 162 | B164: 3.8815
A165: 163 | B165: 4.4706
A166: 164 | B166: 4.6922
A167: 165 | B167: 5.1282
A168: 166 | B168: 4.4197
A169: 167 | B169: 4.104
A170: 168 | B170: 4.4846
A171: 169 | B171: 4.0793
A172: 170 | B172: 4.811
A173: 171 | B173: 4.0419
A174: 172 | B174: 4.2076
A175: 173 | B175: 3.5391
A176: 174 | B176: 4.0695
A177: 175 | B177: 4.5644
A178: 176 | B178: 4.836
A179: 177 | B179: 5.3173
A180: 178 | B180: 4.5329
A181: 179 | B181: 4.5249
A182: 180 | B182: 4.173
A183: 181 | B183: 4.1687
A184: 182 | B184: 3.6754
A185: 183 | B185: 3.9714
A186: 184 | B186: 3.7575
A187: 185 | B187: 4.1944
A188: 186 | B188: 5.166
A189: 187 | B189: 4.6169
A190: 188 | B190: 4.4218
A191: 189 | B191: 4.7514
A192: 190 | B192: 4.7731
A193: 191 | B193: 3.5179
A194: 192 | B194: 4.3543
A195: 193 | B195: 4.6425
A196: 194 | B196: 3.8981
A197: 195 | B197: 4.2702
A198: 196 | B198: 3.8958
A199: 197 | B199: 4.2512
A200: 198 | B200: 4.3701
A201: 199 | B201: 4.6093
... 4299 more rows

Sheet Supplementary Fig. 2b
A2: Time (ns) | B2: Distance (Å)
A3: 1 | B3: 5.6072
A4: 2 | B4: 4.505
A5: 3 | B5: 4.9265
A6: 4 | B6: 4.8601
A7: 5 | B7: 4.996
A8: 6 | B8: 5.2714
A9: 7 | B9: 4.9136
A10: 8 | B10: 5.1866
A11: 9 | B11: 4.946
A12: 10 | B12: 4.4876
A13: 11 | B13: 4.5584
A14: 12 | B14: 4.9299
A15: 13 | B15: 4.7117
A16: 14 | B16: 4.6252
A17: 15 | B17: 4.4349
A18: 16 | B18: 4.7051
A19: 17 | B19: 4.6744
A20: 18 | B20: 4.7082
A21: 19 | B21: 4.9433
A22: 20 | B22: 4.6911
A23: 21 | B23: 4.833
A24: 22 | B24: 4.3829
A25: 23 | B25: 4.5613
A26: 24 | B26: 4.9324
A27: 25 | B27: 5.2892
A28: 26 | B28: 4.6961
A29: 27 | B29: 4.7964
A30: 28 | B30: 4.7423
A31: 29 | B31: 5.3315
A32: 30 | B32: 4.28
A33: 31 | B33: 4.8419
A34: 32 | B34: 5.0966
A35: 33 | B35: 4.9952
A36: 34 | B36: 4.9138
A37: 35 | B37: 4.7239
A38: 36 | B38: 4.8165
A39: 37 | B39: 4.5371
A40: 38 | B40: 4.6797
A41: 39 | B41: 4.729
A42: 40 | B42: 4.6896
A43: 41 | B43: 4.4401
A44: 42 | B44: 5.12
A45: 43 | B45: 4.8477
A46: 44 | B46: 4.5987
A47: 45 | B47: 4.6389
A48: 46 | B48: 4.5212
A49: 47 | B49: 4.7494
A50: 48 | B50: 4.5508
A51: 49 | B51: 4.8048
A52: 50 | B52: 4.482
A53: 51 | B53: 4.813
A54: 52 | B54: 4.8832
A55: 53 | B55: 4.6988
A56: 54 | B56: 4.779
A57: 55 | B57: 4.4195
A58: 56 | B58: 4.8063
A59: 57 | B59: 4.7738
A60: 58 | B60: 4.6678
A61: 59 | B61: 4.7352
A62: 60 | B62: 4.5629
A63: 61 | B63: 4.9916
A64: 62 | B64: 4.7913
A65: 63 | B65: 4.7277
A66: 64 | B66: 4.6757
A67: 65 | B67: 4.7966
A68: 66 | B68: 4.946
A69: 67 | B69: 5.0865
A70: 68 | B70: 4.835
A71: 69 | B71: 4.6679
A72: 70 | B72: 4.7127
A73: 71 | B73: 4.7319
A74: 72 | B74: 5.104
A75: 73 | B75: 4.7994
A76: 74 | B76: 4.8751
A77: 75 | B77: 4.8877
A78: 76 | B78: 4.713
A79: 77 | B79: 4.6697
A80: 78 | B80: 4.9084
A81: 79 | B81: 4.8541
A82: 80 | B82: 4.7249
A83: 81 | B83: 4.9616
A84: 82 | B84: 4.9308
A85: 83 | B85: 4.6486
A86: 84 | B86: 4.8683
A87: 85 | B87: 4.7351
A88: 86 | B88: 4.7009
A89: 87 | B89: 5.1734
A90: 88 | B90: 4.5689
A91: 89 | B91: 4.8493
A92: 90 | B92: 4.7345
A93: 91 | B93: 4.6069
A94: 92 | B94: 4.6905
A95: 93 | B95: 4.6587
A96: 94 | B96: 4.9556
A97: 95 | B97: 4.6894
A98: 96 | B98: 4.5929
A99: 97 | B99: 4.6993
A100: 98 | B100: 4.6934
A101: 99 | B101: 4.7797
A102: 100 | B102: 4.7046
A103: 101 | B103: 4.5414
A104: 102 | B104: 4.6649
A105: 103 | B105: 4.8038
A106: 104 | B106: 5.0887
A107: 105 | B107: 4.9224
A108: 106 | B108: 5.0319
A109: 107 | B109: 4.8707
A110: 108 | B110: 4.6646
A111: 109 | B111: 4.8123
A112: 110 | B112: 4.8014
A113: 111 | B113: 4.6845
A114: 112 | B114: 4.8641
A115: 113 | B115: 4.7955
A116: 114 | B116: 4.8007
A117: 115 | B117: 4.933
A118: 116 | B118: 5.0815
A119: 117 | B119: 4.5541
A120: 118 | B120: 4.7086
A121: 119 | B121: 4.8256
A122: 120 | B122: 4.7579
A123: 121 | B123: 5.0396
A124: 122 | B124: 4.7112
A125: 123 | B125: 4.6003
A126: 124 | B126: 4.6584
A127: 125 | B127: 4.7663
A128: 126 | B128: 4.6352
A129: 127 | B129: 4.957
A130: 128 | B130: 4.6882
A131: 129 | B131: 4.764
A132: 130 | B132: 4.6314
A133: 131 | B133: 4.955
A134: 132 | B134: 4.918
A135: 133 | B135: 4.6588
A136: 134 | B136: 4.713
A137: 135 | B137: 4.5723
A138: 136 | B138: 5.2646
A139: 137 | B139: 4.868
A140: 138 | B140: 5.1404
A141: 139 | B141: 5.1575
A142: 140 | B142: 4.9501
A143: 141 | B143: 4.6785
A144: 142 | B144: 4.7146
A145: 143 | B145: 5.2142
A146: 144 | B146: 4.7247
A147: 145 | B147: 5.0325
A148: 146 | B148: 4.8719
A149: 147 | B149: 4.7823
A150: 148 | B150: 4.7222
A151: 149 | B151: 4.8345
A152: 150 | B152: 4.5763
A153: 151 | B153: 4.6603
A154: 152 | B154: 4.4327
A155: 153 | B155: 4.5991
A156: 154 | B156: 4.6439
A157: 155 | B157: 4.6066
A158: 156 | B158: 4.5705
A159: 157 | B159: 5.1939
A160: 158 | B160: 4.7107
A161: 159 | B161: 4.7596
A162: 160 | B162: 4.3028
A163: 161 | B163: 4.0997
A164: 162 | B164: 4.1276
A165: 163 | B165: 4.6587
A166: 164 | B166: 4.7089
A167: 165 | B167: 4.5894
A168: 166 | B168: 4.7273
A169: 167 | B169: 4.9106
A170: 168 | B170: 4.0037
A171: 169 | B171: 4.5674
A172: 170 | B172: 4.8642
A173: 171 | B173: 4.4495
A174: 172 | B174: 4.7519
A175: 173 | B175: 4.8072
A176: 174 | B176: 4.7581
A177: 175 | B177: 5.0141
A178: 176 | B178: 4.6049
A179: 177 | B179: 4.4011
A180: 178 | B180: 4.5249
A181: 179 | B181: 4.7753
A182: 180 | B182: 4.3102
A183: 181 | B183: 4.9025
A184: 182 | B184: 4.5839
A185: 183 | B185: 4.2713
A186: 184 | B186: 4.7491
A187: 185 | B187: 4.6296
A188: 186 | B188: 4.6803
A189: 187 | B189: 4.658
A190: 188 | B190: 4.6431
A191: 189 | B191: 4.709
A192: 190 | B192: 4.8425
A193: 191 | B193: 5.0899
A194: 192 | B194: 4.7201
A195: 193 | B195: 4.6691
A196: 194 | B196: 4.8589
A197: 195 | B197: 4.729
A198: 196 | B198: 4.7437
A199: 197 | B199: 4.6584
A200: 198 | B200: 5.131
A201: 199 | B201: 4.3919
... 4299 more rows

Sheet Supplementary Fig. 2c
A2: Time (ns) | B2: Distance (Å)
A3: 1 | B3: 5.2028
A4: 2 | B4: 2.9344
A5: 3 | B5: 3.4143
A6: 4 | B6: 3.1071
A7: 5 | B7: 3.3355
A8: 6 | B8: 3.5465
A9: 7 | B9: 4.1961
A10: 8 | B10: 3.5418
A11: 9 | B11: 3.6632
A12: 10 | B12: 3.5229
A13: 11 | B13: 3.1255
A14: 12 | B14: 3.3351
A15: 13 | B15: 3.4611
A16: 14 | B16: 3.7742
A17: 15 | B17: 3.521
A18: 16 | B18: 3.4014
A19: 17 | B19: 3.4963
A20: 18 | B20: 3.1154
A21: 19 | B21: 4.0952
A22: 20 | B22: 2.8606
A23: 21 | B23: 3.6378
A24: 22 | B24: 3.1329
A25: 23 | B25: 3.3608
A26: 24 | B26: 3.17
A27: 25 | B27: 3.743
A28: 26 | B28: 4.0232
A29: 27 | B29: 4.3874
A30: 28 | B30: 4.2102
A31: 29 | B31: 5.0309
A32: 30 | B32: 3.937
A33: 31 | B33: 3.1875
A34: 32 | B34: 3.4576
A35: 33 | B35: 4.111
A36: 34 | B36: 3.2536
A37: 35 | B37: 3.6027
A38: 36 | B38: 3.6594
A39: 37 | B39: 3.3061
A40: 38 | B40: 4.3126
A41: 39 | B41: 3.4603
A42: 40 | B42: 3.4528
A43: 41 | B43: 3.4184
A44: 42 | B44: 3.3952
A45: 43 | B45: 3.288
A46: 44 | B46: 3.091
A47: 45 | B47: 3.3276
A48: 46 | B48: 2.9756
A49: 47 | B49: 3.4181
A50: 48 | B50: 3.1108
A51: 49 | B51: 3.2453
A52: 50 | B52: 3.1489
A53: 51 | B53: 3.4652
A54: 52 | B54: 3.4879
A55: 53 | B55: 3.5009
A56: 54 | B56: 3.2778
A57: 55 | B57: 2.8616
A58: 56 | B58: 3.38
A59: 57 | B59: 3.3883
A60: 58 | B60: 3.4164
A61: 59 | B61: 3.309
A62: 60 | B62: 3.2108
A63: 61 | B63: 4.4514
A64: 62 | B64: 3.7922
A65: 63 | B65: 2.8976
A66: 64 | B66: 3.4923
A67: 65 | B67: 3.5265
A68: 66 | B68: 3.4765
A69: 67 | B69: 3.5436
A70: 68 | B70: 3.7889
A71: 69 | B71: 2.9318
A72: 70 | B72: 3.6432
A73: 71 | B73: 3.728
A74: 72 | B74: 3.9267
A75: 73 | B75: 3.6614
A76: 74 | B76: 3.0981
A77: 75 | B77: 3.5296
A78: 76 | B78: 3.438
A79: 77 | B79: 3.2124
A80: 78 | B80: 3.5091
A81: 79 | B81: 3.2648
A82: 80 | B82: 3.2039
A83: 81 | B83: 3.5505
A84: 82 | B84: 3.6883
A85: 83 | B85: 3.3435
A86: 84 | B86: 3.5422
A87: 85 | B87: 3.0502
A88: 86 | B88: 2.9895
A89: 87 | B89: 3.588
A90: 88 | B90: 2.6109
A91: 89 | B91: 3.0729
A92: 90 | B92: 3.4289
A93: 91 | B93: 2.9577
A94: 92 | B94: 3.6133
A95: 93 | B95: 3.4981
A96: 94 | B96: 3.6509
A97: 95 | B97: 3.3486
A98: 96 | B98: 3.2099
A99: 97 | B99: 3.3178
A100: 98 | B100: 3.561
A101: 99 | B101: 3.0223
A102: 100 | B102: 3.0765
A103: 101 | B103: 3.2656
A104: 102 | B104: 2.9716
A105: 103 | B105: 3.9364
A106: 104 | B106: 3.5958
A107: 105 | B107: 3.4942
A108: 106 | B108: 3.3814
A109: 107 | B109: 3.5736
A110: 108 | B110: 3.0019
A111: 109 | B111: 3.2698
A112: 110 | B112: 3.2158
A113: 111 | B113: 3.1791
A114: 112 | B114: 3.1581
A115: 113 | B115: 3.1052
A116: 114 | B116: 3.2941
A117: 115 | B117: 3.4102
A118: 116 | B118: 3.7828
A119: 117 | B119: 2.9972
A120: 118 | B120: 2.9939
A121: 119 | B121: 3.3209
A122: 120 | B122: 3.3452
A123: 121 | B123: 3.1152
A124: 122 | B124: 2.9841
A125: 123 | B125: 3.9037
A126: 124 | B126: 2.9667
A127: 125 | B127: 3.4054
A128: 126 | B128: 3.1231
A129: 127 | B129: 3.266
A130: 128 | B130: 2.9678
A131: 129 | B131: 3.1252
A132: 130 | B132: 3.1769
A133: 131 | B133: 3.2207
A134: 132 | B134: 3.4423
A135: 133 | B135: 2.8986
A136: 134 | B136: 3.296
A137: 135 | B137: 3.0281
A138: 136 | B138: 3.8149
A139: 137 | B139: 3.2328
A140: 138 | B140: 4.3687
A141: 139 | B141: 3.7667
A142: 140 | B142: 3.2919
A143: 141 | B143: 4.417
A144: 142 | B144: 3.4454
A145: 143 | B145: 4.9551
A146: 144 | B146: 3.1087
A147: 145 | B147: 3.4763
A148: 146 | B148: 3.3716
A149: 147 | B149: 4.6032
A150: 148 | B150: 3.542
A151: 149 | B151: 3.2133
A152: 150 | B152: 3.06
A153: 151 | B153: 3.4274
A154: 152 | B154: 2.8516
A155: 153 | B155: 2.9689
A156: 154 | B156: 3.1368
A157: 155 | B157: 2.8152
A158: 156 | B158: 3.1345
A159: 157 | B159: 3.8845
A160: 158 | B160: 3.3457
A161: 159 | B161: 3.0593
A162: 160 | B162: 3.5963
A163: 161 | B163: 3.7137
A164: 162 | B164: 3.6918
A165: 163 | B165: 2.9934
A166: 164 | B166: 2.8964
A167: 165 | B167: 3.0269
A168: 166 | B168: 3.0234
A169: 167 | B169: 3.4778
A170: 168 | B170: 3.848
A171: 169 | B171: 2.9288
A172: 170 | B172: 3.6357
A173: 171 | B173: 3.5696
A174: 172 | B174: 3.3203
A175: 173 | B175: 3.0998
A176: 174 | B176: 3.1185
A177: 175 | B177: 3.5079
A178: 176 | B178: 3.5977
A179: 177 | B179: 3.2012
A180: 178 | B180: 3.6181
A181: 179 | B181: 3.121
A182: 180 | B182: 3.4315
A183: 181 | B183: 3.2875
A184: 182 | B184: 3.5586
A185: 183 | B185: 3.7729
A186: 184 | B186: 3.2812
A187: 185 | B187: 3.8823
A188: 186 | B188: 3.7692
A189: 187 | B189: 2.8904
A190: 188 | B190: 3.2804
A191: 189 | B191: 3.367
A192: 190 | B192: 2.8712
A193: 191 | B193: 4.138
A194: 192 | B194: 3.0852
A195: 193 | B195: 3.4955
A196: 194 | B196: 3.2517
A197: 195 | B197: 2.9848
A198: 196 | B198: 4.5344
A199: 197 | B199: 3.125
A200: 198 | B200: 4.2248
A201: 199 | B201: 3.5187
... 4299 more rows

Sheet Supplementary Fig. 3a
A2: Time (ns) | B2: Distance (Å)
A3: 1 | B3: 6.449
A4: 2 | B4: 6.3443
A5: 3 | B5: 5.6179
A6: 4 | B6: 5.9538
A7: 5 | B7: 5.4725
A8: 6 | B8: 5.7521
A9: 7 | B9: 6.3269
A10: 8 | B10: 5.5872
A11: 9 | B11: 5.7084
A12: 10 | B12: 6.1342
A13: 11 | B13: 5.6281
A14: 12 | B14: 5.9901
A15: 13 | B15: 6.2386
A16: 14 | B16: 5.8923
A17: 15 | B17: 6.134
A18: 16 | B18: 5.6983
A19: 17 | B19: 5.9451
A20: 18 | B20: 5.8224
A21: 19 | B21: 6.0764
A22: 20 | B22: 5.6239
A23: 21 | B23: 6.056
A24: 22 | B24: 6.329
A25: 23 | B25: 5.9263
A26: 24 | B26: 6.6997
A27: 25 | B27: 6.03
A28: 26 | B28: 6.1165
A29: 27 | B29: 6.6548
A30: 28 | B30: 5.9725
A31: 29 | B31: 7.0847
A32: 30 | B32: 6.6424
A33: 31 | B33: 5.9013
A34: 32 | B34: 6.2065
A35: 33 | B35: 5.7631
A36: 34 | B36: 5.4802
A37: 35 | B37: 5.7943
A38: 36 | B38: 5.9038
A39: 37 | B39: 6.1651
A40: 38 | B40: 5.9698
A41: 39 | B41: 5.9895
A42: 40 | B42: 6.8548
A43: 41 | B43: 6.3592
A44: 42 | B44: 5.9566
A45: 43 | B45: 5.8714
A46: 44 | B46: 6.3881
A47: 45 | B47: 5.5737
A48: 46 | B48: 6.5801
A49: 47 | B49: 6.7825
A50: 48 | B50: 6.4349
A51: 49 | B51: 6.0866
A52: 50 | B52: 5.7707
A53: 51 | B53: 5.0026
A54: 52 | B54: 5.7592
A55: 53 | B55: 5.317
A56: 54 | B56: 6.4363
A57: 55 | B57: 5.8921
A58: 56 | B58: 5.9382
A59: 57 | B59: 5.9737
A60: 58 | B60: 5.3721
A61: 59 | B61: 6.0404
A62: 60 | B62: 5.6341
A63: 61 | B63: 6.3084
A64: 62 | B64: 6.2495
A65: 63 | B65: 6.005
A66: 64 | B66: 6.0721
A67: 65 | B67: 6.1248
A68: 66 | B68: 6.3957
A69: 67 | B69: 5.8753
A70: 68 | B70: 5.3119
A71: 69 | B71: 5.3134
A72: 70 | B72: 7.0309
A73: 71 | B73: 5.4025
A74: 72 | B74: 6.5115
A75: 73 | B75: 5.7414
A76: 74 | B76: 5.6359
A77: 75 | B77: 6.0034
A78: 76 | B78: 5.9395
A79: 77 | B79: 5.9189
A80: 78 | B80: 5.7292
A81: 79 | B81: 5.9059
A82: 80 | B82: 6.0218
A83: 81 | B83: 5.3944
A84: 82 | B84: 6.2114
A85: 83 | B85: 5.9121
A86: 84 | B86: 5.4627
A87: 85 | B87: 5.71
A88: 86 | B88: 5.5437
A89: 87 | B89: 5.5597
A90: 88 | B90: 4.9405
A91: 89 | B91: 5.2982
A92: 90 | B92: 5.679
A93: 91 | B93: 5.5065
A94: 92 | B94: 6.0824
A95: 93 | B95: 5.3411
A96: 94 | B96: 5.0551
A97: 95 | B97: 5.1795
A98: 96 | B98: 5.8301
A99: 97 | B99: 5.2842
A100: 98 | B100: 5.7595
A101: 99 | B101: 5.205
A102: 100 | B102: 5.1667
A103: 101 | B103: 5.8338
A104: 102 | B104: 6.2109
A105: 103 | B105: 6.9423
A106: 104 | B106: 5.7346
A107: 105 | B107: 5.2319
A108: 106 | B108: 5.2704
A109: 107 | B109: 6.3271
A110: 108 | B110: 4.9556
A111: 109 | B111: 5.3029
A112: 110 | B112: 5.922
A113: 111 | B113: 5.8684
A114: 112 | B114: 5.5719
A115: 113 | B115: 5.864
A116: 114 | B116: 6.1307
A117: 115 | B117: 6.0294
A118: 116 | B118: 5.8618
A119: 117 | B119: 5.7822
A120: 118 | B120: 5.8494
A121: 119 | B121: 5.5326
A122: 120 | B122: 5.1987
A123: 121 | B123: 5.1241
A124: 122 | B124: 5.2256
A125: 123 | B125: 5.8676
A126: 124 | B126: 6.1561
A127: 125 | B127: 5.9623
A128: 126 | B128: 5.34
A129: 127 | B129: 5.1688
A130: 128 | B130: 5.906
A131: 129 | B131: 5.4587
A132: 130 | B132: 5.5357
A133: 131 | B133: 5.3269
A134: 132 | B134: 5.3659
A135: 133 | B135: 5.8285
A136: 134 | B136: 5.5167
A137: 135 | B137: 5.9431
A138: 136 | B138: 5.5961
A139: 137 | B139: 5.6661
A140: 138 | B140: 6.3099
A141: 139 | B141: 5.7495
A142: 140 | B142: 5.7762
A143: 141 | B143: 6.4368
A144: 142 | B144: 5.9954
A145: 143 | B145: 6.0312
A146: 144 | B146: 5.8499
A147: 145 | B147: 6.0563
A148: 146 | B148: 5.9203
A149: 147 | B149: 7.0411
A150: 148 | B150: 5.9278
A151: 149 | B151: 5.8163
A152: 150 | B152: 5.6319
A153: 151 | B153: 4.9336
A154: 152 | B154: 6.2768
A155: 153 | B155: 5.6352
A156: 154 | B156: 5.6322
A157: 155 | B157: 5.7047
A158: 156 | B158: 5.9636
A159: 157 | B159: 5.2272
A160: 158 | B160: 6.4596
A161: 159 | B161: 5.7323
A162: 160 | B162: 6.1891
A163: 161 | B163: 5.6552
A164: 162 | B164: 6.1786
A165: 163 | B165: 5.4176
A166: 164 | B166: 6.0917
A167: 165 | B167: 5.0996
A168: 166 | B168: 5.3524
A169: 167 | B169: 5.655
A170: 168 | B170: 5.9298
A171: 169 | B171: 5.6329
A172: 170 | B172: 5.8273
A173: 171 | B173: 5.6732
A174: 172 | B174: 6.0024
A175: 173 | B175: 5.6177
A176: 174 | B176: 5.8221
A177: 175 | B177: 5.6048
A178: 176 | B178: 6.432
A179: 177 | B179: 4.9953
A180: 178 | B180: 5.4621
A181: 179 | B181: 6.0293
A182: 180 | B182: 6.1623
A183: 181 | B183: 6.256
A184: 182 | B184: 5.3798
A185: 183 | B185: 6.2735
A186: 184 | B186: 4.6846
A187: 185 | B187: 6.7714
A188: 186 | B188: 5.8863
A189: 187 | B189: 5.5855
A190: 188 | B190: 5.9466
A191: 189 | B191: 6.2039
A192: 190 | B192: 5.3133
A193: 191 | B193: 6.0927
A194: 192 | B194: 6.6038
A195: 193 | B195: 6.3403
A196: 194 | B196: 5.5169
A197: 195 | B197: 6.589
A198: 196 | B198: 7.2335
A199: 197 | B199: 5.5948
A200: 198 | B200: 6.1496
A201: 199 | B201: 5.8333
... 4299 more rows

Sheet Supplementary Fig. 3b
A2: Time (ns) | B2: Distance (Å)
A3: 1 | B3: 7.0223
A4: 2 | B4: 7.6103
A5: 3 | B5: 6.9948
A6: 4 | B6: 7.4498
A7: 5 | B7: 7.1128
A8: 6 | B8: 7.4586
A9: 7 | B9: 7.2149
A10: 8 | B10: 7.1312
A11: 9 | B11: 7.047
A12: 10 | B12: 7.0697
A13: 11 | B13: 6.9272
A14: 12 | B14: 7.3033
A15: 13 | B15: 7.1722
A16: 14 | B16: 6.5938
A17: 15 | B17: 6.8277
A18: 16 | B18: 7.0055
A19: 17 | B19: 7.3131
A20: 18 | B20: 7.162
A21: 19 | B21: 7.0147
A22: 20 | B22: 7.38
A23: 21 | B23: 6.882
A24: 22 | B24: 7.1932
A25: 23 | B25: 7.0315
A26: 24 | B26: 7.9856
A27: 25 | B27: 7.227
A28: 26 | B28: 7.0829
A29: 27 | B29: 7.2301
A30: 28 | B30: 7.0442
A31: 29 | B31: 7.3845
A32: 30 | B32: 7.2897
A33: 31 | B33: 7.478
A34: 32 | B34: 7.4634
A35: 33 | B35: 6.7347
A36: 34 | B36: 6.8647
A37: 35 | B37: 6.9893
A38: 36 | B38: 6.896
A39: 37 | B39: 7.3879
A40: 38 | B40: 6.5431
A41: 39 | B41: 7.1254
A42: 40 | B42: 7.8017
A43: 41 | B43: 6.8759
A44: 42 | B44: 7.3455
A45: 43 | B45: 7.27
A46: 44 | B46: 7.7539
A47: 45 | B47: 6.64
A48: 46 | B48: 7.7621
A49: 47 | B49: 7.7808
A50: 48 | B50: 7.2001
A51: 49 | B51: 7.7364
A52: 50 | B52: 6.9132
A53: 51 | B53: 6.5613
A54: 52 | B54: 7.017
A55: 53 | B55: 6.5402
A56: 54 | B56: 7.5534
A57: 55 | B57: 7.1515
A58: 56 | B58: 7.1399
A59: 57 | B59: 7.069
A60: 58 | B60: 6.9362
A61: 59 | B61: 7.3578
A62: 60 | B62: 6.8396
A63: 61 | B63: 7.1757
A64: 62 | B64: 7.377
A65: 63 | B65: 7.6063
A66: 64 | B66: 6.8944
A67: 65 | B67: 7.2619
A68: 66 | B68: 7.693
A69: 67 | B69: 7.1306
A70: 68 | B70: 6.3722
A71: 69 | B71: 6.9849
A72: 70 | B72: 7.7275
A73: 71 | B73: 6.8176
A74: 72 | B74: 7.6603
A75: 73 | B75: 7.1233
A76: 74 | B76: 7.3727
A77: 75 | B77: 7.3861
A78: 76 | B78: 7.3445
A79: 77 | B79: 7.3668
A80: 78 | B80: 7.2988
A81: 79 | B81: 7.4347
A82: 80 | B82: 7.5593
A83: 81 | B83: 6.7081
A84: 82 | B84: 7.5849
A85: 83 | B85: 7.1823
A86: 84 | B86: 6.7386
A87: 85 | B87: 7.2402
A88: 86 | B88: 7.3945
A89: 87 | B89: 7.2105
A90: 88 | B90: 6.9413
A91: 89 | B91: 7.0959
A92: 90 | B92: 6.9715
A93: 91 | B93: 7.2312
A94: 92 | B94: 7.3598
A95: 93 | B95: 6.7318
A96: 94 | B96: 6.726
A97: 95 | B97: 6.6015
A98: 96 | B98: 7.1705
A99: 97 | B99: 6.8078
A100: 98 | B100: 6.6216
A101: 99 | B101: 7.0664
A102: 100 | B102: 6.8779
A103: 101 | B103: 6.7501
A104: 102 | B104: 7.6435
A105: 103 | B105: 7.6904
A106: 104 | B106: 7.1684
A107: 105 | B107: 6.8731
A108: 106 | B108: 7.068
A109: 107 | B109: 7.5253
A110: 108 | B110: 6.681
A111: 109 | B111: 6.6717
A112: 110 | B112: 7.5229
A113: 111 | B113: 7.1333
A114: 112 | B114: 7.373
A115: 113 | B115: 7.5089
A116: 114 | B116: 7.9779
A117: 115 | B117: 7.6041
A118: 116 | B118: 7.0123
A119: 117 | B119: 7.4373
A120: 118 | B120: 7.2192
A121: 119 | B121: 6.8779
A122: 120 | B122: 6.8931
A123: 121 | B123: 6.8296
A124: 122 | B124: 6.9
A125: 123 | B125: 6.6574
A126: 124 | B126: 7.6439
A127: 125 | B127: 7.1754
A128: 126 | B128: 6.7405
A129: 127 | B129: 6.8686
A130: 128 | B130: 7.4546
A131: 129 | B131: 6.9211
A132: 130 | B132: 6.8649
A133: 131 | B133: 6.8899
A134: 132 | B134: 6.9602
A135: 133 | B135: 7.4645
A136: 134 | B136: 6.9651
A137: 135 | B137: 7.3619
A138: 136 | B138: 6.8839
A139: 137 | B139: 7.2578
A140: 138 | B140: 7.2562
A141: 139 | B141: 7.1025
A142: 140 | B142: 7.1894
A143: 141 | B143: 6.9961
A144: 142 | B144: 7.1439
A145: 143 | B145: 6.8828
A146: 144 | B146: 7.3809
A147: 145 | B147: 7.316
A148: 146 | B148: 7.552
A149: 147 | B149: 7.2682
A150: 148 | B150: 6.9617
A151: 149 | B151: 7.213
A152: 150 | B152: 6.8182
A153: 151 | B153: 6.4913
A154: 152 | B154: 7.3495
A155: 153 | B155: 7.0505
A156: 154 | B156: 7.1475
A157: 155 | B157: 7.4445
A158: 156 | B158: 7.2042
A159: 157 | B159: 6.4719
A160: 158 | B160: 7.5888
A161: 159 | B161: 7.2493
A162: 160 | B162: 6.8844
A163: 161 | B163: 6.2771
A164: 162 | B164: 6.7843
A165: 163 | B165: 6.6652
A166: 164 | B166: 7.629
A167: 165 | B167: 6.6188
A168: 166 | B168: 7.1881
A169: 167 | B169: 6.9761
A170: 168 | B170: 6.0966
A171: 169 | B171: 7.3527
A172: 170 | B172: 7.002
A173: 171 | B173: 6.7601
A174: 172 | B174: 7.4313
A175: 173 | B175: 7.3706
A176: 174 | B176: 7.1495
A177: 175 | B177: 6.9318
A178: 176 | B178: 7.2772
A179: 177 | B179: 6.1495
A180: 178 | B180: 6.5792
A181: 179 | B181: 7.6398
A182: 180 | B182: 7.0123
A183: 181 | B183: 7.682
A184: 182 | B184: 6.4546
A185: 183 | B185: 6.9812
A186: 184 | B186: 6.321
A187: 185 | B187: 7.2142
A188: 186 | B188: 6.5636
A189: 187 | B189: 7.2371
A190: 188 | B190: 7.0001
A191: 189 | B191: 7.0732
A192: 190 | B192: 7.003
A193: 191 | B193: 7.0888
A194: 192 | B194: 7.8322
A195: 193 | B195: 7.1418
A196: 194 | B196: 7.0345
A197: 195 | B197: 7.8727
A198: 196 | B198: 7.4054
A199: 197 | B199: 7.05
A200: 198 | B200: 7.1318
A201: 199 | B201: 6.7577
... 4299 more rows

Sheet Supplementary Fig. 3c
A2: Time (ns) | B2: Distance (Å)
A3: 1 | B3: 6.7878
A4: 2 | B4: 7.0031
A5: 3 | B5: 6.1976
A6: 4 | B6: 6.3177
A7: 5 | B7: 6.2912
A8: 6 | B8: 6.2835
A9: 7 | B9: 6.5313
A10: 8 | B10: 5.7289
A11: 9 | B11: 6.5809
A12: 10 | B12: 6.7435
A13: 11 | B13: 6.5621
A14: 12 | B14: 6.9462
A15: 13 | B15: 6.7618
A16: 14 | B16: 6.8027
A17: 15 | B17: 6.9586
A18: 16 | B18: 6.6969
A19: 17 | B19: 6.4144
A20: 18 | B20: 6.9135
A21: 19 | B21: 6.7792
A22: 20 | B22: 6.5474
A23: 21 | B23: 6.9528
A24: 22 | B24: 6.9038
A25: 23 | B25: 6.3446
A26: 24 | B26: 7.0076
A27: 25 | B27: 6.9095
A28: 26 | B28: 6.3594
A29: 27 | B29: 7.2667
A30: 28 | B30: 6.7205
A31: 29 | B31: 7.8043
A32: 30 | B32: 7.142
A33: 31 | B33: 6.8049
A34: 32 | B34: 6.6972
A35: 33 | B35: 6.6657
A36: 34 | B36: 6.3249
A37: 35 | B37: 6.5824
A38: 36 | B38: 6.5489
A39: 37 | B39: 6.4966
A40: 38 | B40: 6.7442
A41: 39 | B41: 6.736
A42: 40 | B42: 7.5475
A43: 41 | B43: 6.8988
A44: 42 | B44: 6.423
A45: 43 | B45: 6.4549
A46: 44 | B46: 6.9381
A47: 45 | B47: 6.3062
A48: 46 | B48: 7.1781
A49: 47 | B49: 7.0088
A50: 48 | B50: 6.9096
A51: 49 | B51: 6.2724
A52: 50 | B52: 6.3041
A53: 51 | B53: 5.7451
A54: 52 | B54: 5.9376
A55: 53 | B55: 5.8165
A56: 54 | B56: 6.569
A57: 55 | B57: 6.3233
A58: 56 | B58: 6.6254
A59: 57 | B59: 6.4895
A60: 58 | B60: 6.0851
A61: 59 | B61: 6.6006
A62: 60 | B62: 6.6365
A63: 61 | B63: 6.6232
A64: 62 | B64: 7.0328
A65: 63 | B65: 6.4551
A66: 64 | B66: 7.0338
A67: 65 | B67: 6.6292
A68: 66 | B68: 6.9388
A69: 67 | B69: 6.7813
A70: 68 | B70: 6.307
A71: 69 | B71: 6.3886
A72: 70 | B72: 7.4805
A73: 71 | B73: 6.5678
A74: 72 | B74: 7.1155
A75: 73 | B75: 6.0972
A76: 74 | B76: 5.82
A77: 75 | B77: 6.7893
A78: 76 | B78: 6.5764
A79: 77 | B79: 6.5236
A80: 78 | B80: 6.3645
A81: 79 | B81: 6.7572
A82: 80 | B82: 6.4499
A83: 81 | B83: 6.5173
A84: 82 | B84: 6.6198
A85: 83 | B85: 6.6293
A86: 84 | B86: 6.1716
A87: 85 | B87: 6.4804
A88: 86 | B88: 5.9934
A89: 87 | B89: 6.0549
A90: 88 | B90: 5.4985
A91: 89 | B91: 6.0445
A92: 90 | B92: 6.7672
A93: 91 | B93: 6.2662
A94: 92 | B94: 6.809
A95: 93 | B95: 6.0652
A96: 94 | B96: 5.9122
A97: 95 | B97: 6.1448
A98: 96 | B98: 6.3049
A99: 97 | B99: 6.1993
A100: 98 | B100: 6.6806
A101: 99 | B101: 5.8352
A102: 100 | B102: 5.9591
A103: 101 | B103: 6.624
A104: 102 | B104: 6.8184
A105: 103 | B105: 7.6823
A106: 104 | B106: 6.6865
A107: 105 | B107: 6.0204
A108: 106 | B108: 6.0894
A109: 107 | B109: 6.8339
A110: 108 | B110: 5.8627
A111: 109 | B111: 6.2096
A112: 110 | B112: 6.6455
A113: 111 | B113: 6.0726
A114: 112 | B114: 6.0933
A115: 113 | B115: 6.3879
A116: 114 | B116: 6.8384
A117: 115 | B117: 6.5688
A118: 116 | B118: 6.8389
A119: 117 | B119: 6.3105
A120: 118 | B120: 6.6322
A121: 119 | B121: 6.2764
A122: 120 | B122: 5.9845
A123: 121 | B123: 5.7606
A124: 122 | B124: 6.324
A125: 123 | B125: 6.6966
A126: 124 | B126: 6.8823
A127: 125 | B127: 6.8216
A128: 126 | B128: 5.9817
A129: 127 | B129: 6.2134
A130: 128 | B130: 6.6929
A131: 129 | B131: 6.2475
A132: 130 | B132: 6.3251
A133: 131 | B133: 6.1525
A134: 132 | B134: 6.347
A135: 133 | B135: 6.0312
A136: 134 | B136: 6.4943
A137: 135 | B137: 6.2126
A138: 136 | B138: 6.1956
A139: 137 | B139: 6.2847
A140: 138 | B140: 6.6766
A141: 139 | B141: 6.3999
A142: 140 | B142: 6.1283
A143: 141 | B143: 7.0295
A144: 142 | B144: 6.3994
A145: 143 | B145: 6.6462
A146: 144 | B146: 6.5979
A147: 145 | B147: 6.1822
A148: 146 | B148: 6.605
A149: 147 | B149: 7.6643
A150: 148 | B150: 6.0409
A151: 149 | B151: 6.2384
A152: 150 | B152: 6.5277
A153: 151 | B153: 5.9123
A154: 152 | B154: 6.9099
A155: 153 | B155: 6.4017
A156: 154 | B156: 6.5065
A157: 155 | B157: 6.4044
A158: 156 | B158: 6.3128
A159: 157 | B159: 5.9718
A160: 158 | B160: 7.0176
A161: 159 | B161: 6.4786
A162: 160 | B162: 6.434
A163: 161 | B163: 6.2461
A164: 162 | B164: 6.8074
A165: 163 | B165: 5.9898
A166: 164 | B166: 6.5234
A167: 165 | B167: 5.8327
A168: 166 | B168: 6.0012
A169: 167 | B169: 6.0088
A170: 168 | B170: 6.5063
A171: 169 | B171: 5.949
A172: 170 | B172: 6.7355
A173: 171 | B173: 6.5138
A174: 172 | B174: 6.6526
A175: 173 | B175: 6.4354
A176: 174 | B176: 6.147
A177: 175 | B177: 6.3718
A178: 176 | B178: 6.8702
A179: 177 | B179: 5.8578
A180: 178 | B180: 6.4365
A181: 179 | B181: 6.5603
A182: 180 | B182: 6.2739
A183: 181 | B183: 6.5161
A184: 182 | B184: 6.3172
A185: 183 | B185: 6.7433
A186: 184 | B186: 5.7663
A187: 185 | B187: 6.6677
A188: 186 | B188: 6.5981
A189: 187 | B189: 6.4179
A190: 188 | B190: 6.8482
A191: 189 | B191: 7.1772
A192: 190 | B192: 6.3359
A193: 191 | B193: 6.8904
A194: 192 | B194: 6.6026
A195: 193 | B195: 6.7118
A196: 194 | B196: 5.9848
A197: 195 | B197: 7.1215
A198: 196 | B198: 7.6664
A199: 197 | B199: 6.7057
A200: 198 | B200: 6.6455
A201: 199 | B201: 6.3957
... 4299 more rows

Sheet Supplementary Fig. 3d
A2: Time (ns) | B2: Distance (Å)
A3: 1 | B3: 6.7064
A4: 2 | B4: 7.8708
A5: 3 | B5: 7.26
A6: 4 | B6: 7.4727
A7: 5 | B7: 7.391
A8: 6 | B8: 7.5786
A9: 7 | B9: 6.7852
A10: 8 | B10: 7.0194
A11: 9 | B11: 7.3621
A12: 10 | B12: 7.0202
A13: 11 | B13: 7.2177
A14: 12 | B14: 7.8499
A15: 13 | B15: 7.056
A16: 14 | B16: 6.8602
A17: 15 | B17: 6.9911
A18: 16 | B18: 7.4045
A19: 17 | B19: 7.1924
A20: 18 | B20: 7.6674
A21: 19 | B21: 7.0803
A22: 20 | B22: 7.8686
A23: 21 | B23: 7.0901
A24: 22 | B24: 7.13
A25: 23 | B25: 6.9187
A26: 24 | B26: 7.9627
A27: 25 | B27: 7.4369
A28: 26 | B28: 6.731
A29: 27 | B29: 7.1901
A30: 28 | B30: 7.1508
A31: 29 | B31: 7.4791
A32: 30 | B32: 7.1203
A33: 31 | B33: 7.9867
A34: 32 | B34: 7.3242
A35: 33 | B35: 6.9708
A36: 34 | B36: 7.074
A37: 35 | B37: 7.0844
A38: 36 | B38: 6.845
A39: 37 | B39: 7.1291
A40: 38 | B40: 6.6194
A41: 39 | B41: 7.3911
A42: 40 | B42: 7.8982
A43: 41 | B43: 6.707
A44: 42 | B44: 7.368
A45: 43 | B45: 7.4568
A46: 44 | B46: 7.893
A47: 45 | B47: 6.7165
A48: 46 | B48: 7.7619
A49: 47 | B49: 7.5119
A50: 48 | B50: 7.0321
A51: 49 | B51: 7.7339
A52: 50 | B52: 6.8163
A53: 51 | B53: 6.6929
A54: 52 | B54: 6.8356
A55: 53 | B55: 6.3663
A56: 54 | B56: 7.2326
A57: 55 | B57: 6.9814
A58: 56 | B58: 7.17
A59: 57 | B59: 7.031
A60: 58 | B60: 7.0807
A61: 59 | B61: 7.3144
A62: 60 | B62: 7.2038
A63: 61 | B63: 6.7928
A64: 62 | B64: 7.6127
A65: 63 | B65: 7.547
A66: 64 | B66: 7.2111
A67: 65 | B67: 7.2631
A68: 66 | B68: 7.6794
A69: 67 | B69: 7.4518
A70: 68 | B70: 6.6722
A71: 69 | B71: 7.6732
A72: 70 | B72: 7.552
A73: 71 | B73: 7.3954
A74: 72 | B74: 7.8591
A75: 73 | B75: 6.8884
A76: 74 | B76: 7.261
A77: 75 | B77: 7.6187
A78: 76 | B78: 7.4159
A79: 77 | B79: 7.4252
A80: 78 | B80: 7.4218
A81: 79 | B81: 7.7817
A82: 80 | B82: 7.5177
A83: 81 | B83: 7.2546
A84: 82 | B84: 7.4466
A85: 83 | B85: 7.2349
A86: 84 | B86: 6.7999
A87: 85 | B87: 7.4022
A88: 86 | B88: 7.5387
A89: 87 | B89: 7.219
A90: 88 | B90: 7.0332
A91: 89 | B91: 7.4416
A92: 90 | B92: 7.4862
A93: 91 | B93: 7.7233
A94: 92 | B94: 7.5404
A95: 93 | B95: 6.816
A96: 94 | B96: 7.0969
A97: 95 | B97: 7.0028
A98: 96 | B98: 6.9725
A99: 97 | B99: 7.1988
A100: 98 | B100: 6.9166
A101: 99 | B101: 7.2606
A102: 100 | B102: 7.1115
A103: 101 | B103: 6.841
A104: 102 | B104: 7.7588
A105: 103 | B105: 7.8385
A106: 104 | B106: 7.579
A107: 105 | B107: 7.17
A108: 106 | B108: 7.3988
A109: 107 | B109: 7.7047
A110: 108 | B110: 7.1045
A111: 109 | B111: 7.0019
A112: 110 | B112: 7.7722
A113: 111 | B113: 6.7313
A114: 112 | B114: 7.5064
A115: 113 | B115: 7.6025
A116: 114 | B116: 8.3283
A117: 115 | B117: 7.6738
A118: 116 | B118: 7.4334
A119: 117 | B119: 7.49
A120: 118 | B120: 7.5195
A121: 119 | B121: 7.1873
A122: 120 | B122: 7.0929
A123: 121 | B123: 6.8963
A124: 122 | B124: 7.4488
A125: 123 | B125: 6.7681
A126: 124 | B126: 7.8865
A127: 125 | B127: 7.4801
A128: 126 | B128: 6.9167
A129: 127 | B129: 7.369
A130: 128 | B130: 7.7833
A131: 129 | B131: 7.074
A132: 130 | B132: 7.0529
A133: 131 | B133: 7.2122
A134: 132 | B134: 7.3887
A135: 133 | B135: 7.2911
A136: 134 | B136: 7.4029
A137: 135 | B137: 7.3138
A138: 136 | B138: 6.9361
A139: 137 | B139: 7.5181
A140: 138 | B140: 6.9767
A141: 139 | B141: 7.277
A142: 140 | B142: 7.0914
A143: 141 | B143: 6.9299
A144: 142 | B144: 6.8788
A145: 143 | B145: 6.7736
A146: 144 | B146: 7.7014
A147: 145 | B147: 7.263
A148: 146 | B148: 7.7195
A149: 147 | B149: 7.2729
A150: 148 | B150: 6.7724
A151: 149 | B151: 7.0196
A152: 150 | B152: 7.074
A153: 151 | B153: 6.8488
A154: 152 | B154: 7.4076
A155: 153 | B155: 7.3801
A156: 154 | B156: 7.6359
A157: 155 | B157: 7.8251
A158: 156 | B158: 7.0771
A159: 157 | B159: 6.5206
A160: 158 | B160: 7.5293
A161: 159 | B161: 7.3951
A162: 160 | B162: 6.6426
A163: 161 | B163: 6.0677
A164: 162 | B164: 6.7254
A165: 163 | B165: 6.7763
A166: 164 | B166: 7.6573
A167: 165 | B167: 6.7137
A168: 166 | B168: 7.3332
A169: 167 | B169: 6.8648
A170: 168 | B170: 5.9146
A171: 169 | B171: 7.2754
A172: 170 | B172: 7.3404
A173: 171 | B173: 6.9085
A174: 172 | B174: 7.5326
A175: 173 | B175: 7.7209
A176: 174 | B176: 7.0787
A177: 175 | B177: 7.2012
A178: 176 | B178: 7.1036
A179: 177 | B179: 6.2646
A180: 178 | B180: 6.9094
A181: 179 | B181: 7.6582
A182: 180 | B182: 6.5089
A183: 181 | B183: 7.4497
A184: 182 | B184: 6.7343
A185: 183 | B185: 6.7988
A186: 184 | B186: 6.859
A187: 185 | B187: 6.6661
A188: 186 | B188: 6.5325
A189: 187 | B189: 7.5157
A190: 188 | B190: 7.2896
A191: 189 | B191: 7.4617
A192: 190 | B192: 7.5402
A193: 191 | B193: 7.2687
A194: 192 | B194: 7.84
A195: 193 | B195: 6.8388
A196: 194 | B196: 6.9447
A197: 195 | B197: 7.8983
A198: 196 | B198: 7.3305
A199: 197 | B199: 7.6491
A200: 198 | B200: 7.0327
A201: 199 | B201: 6.6243
... 4299 more rows
